{"text_format":"1","workbook":"xlsx","n_sheets":6,"sheets":["Příkaz","Vyúčtování test","Vyúčtování","Zpráva o cestě","Kurzy CNB","List1"],"not_rendered":{"charts":3,"images":1,"macros":1,"external_links":0,"defined_names":6,"comments":4,"pivot_tables":0},"unopened":[],"bounds":{"document_bytes":16777216,"sheet_cells":100000,"rows_first":2000,"rows_last":500,"rows_between":2000,"halvings":0,"cell_chars":16384,"cell_head_chars":4096},"cells_cut":0,"cells_raw":0,"read":"whole","date_system":"1900"}

{"sheet":"Příkaz","index":0,"n_rows":84,"n_cols":29,"rows_kept":84,"cut":false,"hidden":false,"merged":[[0,25,0,27],[38,7,38,9],[39,7,39,9],[38,14,38,16],[39,14,39,16],[17,5,17,17],[25,5,25,15],[27,5,27,15],[29,5,29,15],[14,9,14,17],[10,3,10,17],[12,1,12,3],[37,9,37,12],[10,1,10,2],[36,23,36,24],[12,4,12,17],[50,1,50,4],[50,5,50,8],[33,10,33,15],[42,1,43,17],[33,6,33,8],[46,1,46,2],[41,1,41,17],[37,14,37,17],[36,14,36,17],[33,1,33,5],[37,3,37,5],[36,9,36,10],[36,6,36,8],[36,1,36,2],[36,3,36,5],[58,2,58,17],[60,1,60,17],[83,1,83,7],[75,1,75,7],[75,10,75,17],[79,10,79,17],[83,10,83,17],[79,1,79,7],[65,1,72,17],[63,1,63,3],[54,1,54,6],[54,7,54,8],[63,9,63,17],[62,1,62,3],[44,5,44,17],[44,1,44,2],[46,5,46,17],[48,1,48,2],[48,5,48,7],[48,9,48,10],[48,11,48,17],[52,1,52,3],[52,5,52,17],[50,13,50,17],[50,9,50,12],[56,2,57,17],[31,1,31,3],[31,5,31,17],[29,1,29,2],[17,1,17,2],[19,1,19,5],[21,1,21,15],[19,8,19,12],[19,13,19,15],[25,1,25,2],[27,1,27,2],[23,1,23,9],[23,10,23,17],[0,10,0,17],[4,1,4,2],[4,3,4,9],[4,11,4,17],[6,5,6,6],[6,7,6,8],[6,9,6,17],[14,1,14,2],[14,5,14,6],[14,7,14,8],[1,1,1,17],[8,1,8,2],[8,3,8,17]]}
[null,null,null,null,null,null,null,null,null,null,"Příloha OD  č. 1/2022\n\nEvidenční číslo:",null,null,null,null,null,null,null,null,null,null,null,null,null,null,{"$f":"IFERROR(\"Vyúčtování pracovní cesty a zprávu o pracovní cestě je nutné odevzdat nejpozději do \" &TEXT(List1!$AC$1,\"dd.mm.rrrr\")&\".\",\"\")","v":""}]
[null,"CESTOVNÍ  PŘÍKAZ K USKUTEČNĚNÍ ZAHRANIČNÍ PRACOVNÍ CESTY"]
[]
[]
[null,"Jméno a příjmení:",null,null,null,null,null,null,null,null,"Pracoviště:"]
[]
[null,"Zahájení cesty",null,"Datum:",null,null,null,"Místo:",null,null,null,null,null,null,null,null,null,null,null,null,null,null,null,null,null,null,null,null,{"$f":"D18&D26&D28&D30","v":""}]
[]
[null,"Místo konání:",null,null,null,null,null,null,null,null,null,null,null,null,null,null,null,null,null,null,null,null,null,"Stát, místo, pořadatel",null,null,null,null,"PF UKPF UKPF UKPF UK"]
[]
[null,"Název akce/Účel:"]
[]
[null,"Očekávaný přínos/výstup:"]
[]
[null,"Ukončení cesty",null,"Datum:",null,null,null,"Místo:"]
[]
[]
[null,"Jízdné hradí:",null,null,null,"upřesněte zdroj, v případě PF UK uveďte číslo střediska"]
[]
[null,"Návrh na určení dopravního prostředku:",null,null,null,null,"V",null,{"$f":"IF(G20<>\"\",(VLOOKUP(G20,List1!B3:C11,2,FALSE)),\"\")","v":"Vlak"},null,null,null,null,{"$f":"IF(G20=\"V\",\"Jízdenku zařizuje:\",IF(G20=\"A\",\"Jízdenku zařizuje:\",IF(G20=\"L\",\"Letenku zařizuje:\",\"\")))","v":"Jízdenku zařizuje:"},null,null,null,null,null,null,null,null,null,"Standardně si zaměstnanec zajišťuje letenky/jízdenky sám."]
[]
[null,"Předpokládaná výše jízdních výdajů  za jehož použití mají být poskytnuty náhrady jízdních výdajů:",null,null,null,null,null,null,null,null,null,null,null,null,null,null,null,0]
[]
[null,"Úhrada ostatních výdajů (PF UK, grant nebo jiný zdroj)",null,null,null,null,null,null,null,null,"Předpokládáná výše ostatních výdajů v Kč"]
[]
[null,"Ubytování hradí:",null,null,null,"upřesněte zdroj, v případě PF UK uveďte číslo střediska",null,null,null,null,null,null,null,null,null,null,null,0,null,null,null,null,null,"(PF UK, grant nebo projekt)",null,"částka v Kč"]
[null,null,null,null,null,null,null,null,null,null,null,null,null,null,null,null,null,null,null,null,null,null,null,null,null,"částka v Kč"]
[null,"Stravné hradí:",null,null,null,"upřesněte zdroj, v případě PF UK uveďte číslo střediska",null,null,null,null,null,null,null,null,null,null,null,0,null,null,null,null,null,"(PF UK, grant nebo projekt)",null,"částka v Kč"]
[null,null,null,null,null,null,null,null,null,null,null,null,null,null,null,null,null,null,null,null,null,null,null,null,null,"částka v Kč"]
[null,"Nutné vedl. výd. hradí:",null,null,null,"upřesněte zdroj, v případě PF UK uveďte číslo střediska",null,null,null,null,null,null,null,null,null,null,null,0,null,null,null,null,null,"(PF UK, grant nebo projekt)",null,"částka v Kč"]
[]
[null,"Nutné vedlejší výdaje specifikace:",null,null,null,null,null,null,null,null,null,null,null,null,null,null,null,null,null,null,null,null,null,"Specifikace"]
[]
[null,{"$f":"\"Cestovní pojištění (\"&List1!R2&\"), zajištuje a hradí:\"","v":"Cestovní pojištění (1 den), zajištuje a hradí:"},null,null,null,null,null,null,null,null,"Předpokládáné výdaje celkem",null,null,null,null,null,null,{"$f":"IF(OR(G20=\"SV\",G20=\"SJ\"),R26+R28+R30,R22+R26+R28+R30)","v":0}]
[]
[]
[null,"Žádám o zálohu:",null,"Ne",null,null,"Výše zálohy:",null,null,0,null,null,"USD",null,null,null,null,null,null,null,null,null,null,{"$f":"IF(D37<>\"\",IF(J37<>\"\",(IF(M37=\"CZK\",1,VLOOKUP(TODAY(),'Kurzy CNB'!$A$1:$AJ$315,VLOOKUP(M37,List1!$S$4:$T$36,2,FALSE),TRUE)))*J37,\"\"),\"\")","v":0},null,"Výše v Kč podle naposledy aktualizovaného kurzu"]
[null,null,null,{"$f":"IF(AND(D37=\"Ano, na bank. Účet\",M37<>\"CZK\"),\"vedený v měně \"&M37,\"\")","v":""},null,null,null,null,null,null,null,null,null,null,{"$f":"IF(D37=\"Ano, na bank. účet\",IF(M37=\"CZK\",\"Číslo bankovního účtu\",IF(M37=\"EUR\",\"IBAN\",\"IBAN+vyplňte form. zahr. platby\")),\"datum vyplacení\")","v":"datum vyplacení"}]
[null,"Pracovní cesta bude přerušena:",null,null,null,"Ne","Od:",null,null,null,null,null,"Do:"]
[null,null,null,null,null,null,null,"datum",null,null,"čas",null,null,null,"datum",null,null,"čas"]
[]
[null,"POUŽITÍ  SOUKROMÉHO  VOZIDLA NA PRACOVNÍ CESTU"]
[null,"Vyplní řidič vozidla (zaměstnanec) před cestou."]
[]
[null,"Vlastník  vozidla:"]
[]
[null,"Řidič vozidla:",null,null,null,{"$f":"IF(D5=\"\",\"\",D5)","v":""}]
[]
[null,"RZ vozidla:",null,null,null,null,null,null,null,"Typ vozu:"]
[]
[null,"Datum povinn. proškolení  řidiče:",null,null,null,null,null,null,null,"Číslo havarijní pojistky:"]
[]
[null,"Spolucestující:"]
[]
[null,"Prohlašuji, že vozidlo použité na této služební cestě",null,null,null,null,null,"NENÍ",null," v evidenci plátců silniční daně pro rok 2023."]
[null,"Prohlašuji, že mám platný řidičský průkaz."]
[null,"Přílohy: "," - kopie velkého technického průkazu (datum aktuální technické kontroly)\n - kopie dokladu o sjednání havarijního pojištění (pokud jste už neodevzdali  na ekonomickém oddělení)"]
[]
[null,null,{"$f":"IF(OR(G20=\"V\",G20=\"A - VV\",G20=\"V - VV\",G20=\"L - VV\",G20=\"A - VV\",G20=\"A\",G20=\"L\",),\" - doklad o předpokládané výši jízdních výdajů za dopravní prostředek, za jehož použití mají být poskytnuty náhrady jízdních výdajů\",\"\")","v":" - doklad o předpokládané výši jízdních výdajů za dopravní prostředek, za jehož použití mají být poskytnuty náhrady jízdních výdajů"}]
[null,{"$f":"IFERROR(\"Prohlašuji, že podám vyúčtování pracovní cesty a zprávu pracovní cestě nejpozději do \" &TEXT(List1!AC1,\"dd.mm.rrrr\")&\".\",\"\")","v":""}]
[null,{"$f":"\"Žádám o náhradu jízdních výdajů  \"&IF(G20=\"VV\",\"za každý kilometr jízdy sazbou základní náhrady a náhradou za spotřebované pohonné hmoty podle zákonných sazeb platných v době konání pracovní cesty.\",IF(OR(G20=\"V - VV\",G20=\"V\"),\"ve výši odpovídající ceně jízdenky za vlak do výše \" & R22 &\" Kč.\",IF(OR(G20=\"A - VV\",G20=\"A\"),\"ve výši odpovídající ceně jízdenky za autobus do výše \" &R22&\" Kč.\",IF(OR(G20=\"L - VV\",G20=\"L\"),\"ve výši odpovídající ceně letenky do výše \" &R22&\" Kč.\",\"- NE.\"))))","v":"Žádám o náhradu jízdních výdajů  ve výši odpovídající ceně jízdenky za vlak do výše 0 Kč."}]
[]
[]
[null,"V Praze dne",null,null,null,null,null,null,null,"Podpis zaměstnance"]
[]
[]
[]
[]
[]
[]
[]
[]
[]
[null,"Poznámka schvalujících"]
[]
[null,"Podpis  řešitele grantu nebo projektu",null,null,null,null,null,null,null,null,"Podpis přímého nadřízeného"]
[]
[]
[]
[null,"Podpis vedoucího zahraničního oddělení",null,null,null,null,null,null,null,null,"Podpis tajemníka (správce rozpočtu)"]
[]
[]
[]
[null,"Podpis vedoucí ekonomického oddělení",null,null,null,null,null,null,null,null,"Podpis proděkanky pro zahraniční vztahy"]

{"sheet":"Vyúčtování test","index":1,"n_rows":56,"n_cols":33,"rows_kept":56,"cut":false,"hidden":true,"merged":[[18,20,19,20],[16,13,17,13],[16,17,17,17],[17,3,17,4],[18,1,19,1],[18,3,18,4],[18,6,19,6],[18,7,19,7],[18,9,19,9],[16,6,17,6],[16,7,17,7],[16,9,17,9],[16,10,17,10],[16,11,17,11],[18,19,19,19],[18,12,19,12],[19,3,19,4],[16,8,17,8],[18,8,19,8],[16,1,17,1],[16,3,16,4],[14,20,15,20],[16,20,17,20],[1,1,1,17],[2,1,3,1],[2,3,3,4],[2,6,3,6],[2,7,3,7],[2,8,3,8],[12,12,13,12],[16,12,17,12],[12,13,13,13],[12,17,13,17],[13,3,13,4],[14,1,15,1],[14,3,14,4],[14,6,15,6],[14,7,15,7],[14,9,15,9],[14,10,15,10],[12,3,12,4],[12,6,13,6],[12,7,13,7],[12,9,13,9],[12,10,13,10],[4,20,5,20],[6,20,7,20],[8,20,9,20],[10,20,11,20],[12,20,13,20],[4,10,5,10],[4,11,5,11],[4,12,5,12],[4,13,5,13],[4,17,5,17],[4,19,5,19],[10,10,11,10],[10,11,11,11],[10,12,11,12],[10,13,11,13],[14,8,15,8],[10,17,11,17],[18,13,19,13],[18,17,19,17],[5,3,5,4],[6,13,7,13],[6,17,7,17],[8,10,9,10],[8,11,9,11],[8,12,9,12],[8,13,9,13],[8,17,9,17],[9,3,9,4],[6,12,7,12],[7,3,7,4],[4,8,5,8],[6,10,7,10],[6,11,7,11],[11,3,11,4],[10,3,10,4],[10,6,11,6],[10,7,11,7],[10,9,11,9],[10,8,11,8],[55,9,56,17],[44,1,44,8],[48,9,48,17],[46,1,47,8],[49,9,49,17],[23,7,23,10],[34,1,34,4],[41,1,41,4],[51,1,51,5],[55,1,55,5],[30,1,31,4],[29,5,30,8],[31,7,31,8],[24,10,24,13],[4,1,5,1],[4,3,4,4],[4,6,5,6],[4,7,5,7],[4,9,5,9],[6,1,7,1],[6,3,6,4],[6,6,7,6],[6,7,7,7],[6,9,7,9],[6,8,7,8],[24,24,24,26],[16,19,17,19],[14,19,15,19],[12,19,13,19],[10,19,11,19],[8,19,9,19],[6,19,7,19],[8,1,9,1],[8,3,8,4],[8,6,9,6],[8,7,9,7],[8,9,9,9],[8,8,9,8],[18,10,19,10],[18,11,19,11],[14,13,15,13],[12,1,13,1],[12,11,13,11],[14,11,15,11],[14,12,15,12],[14,17,15,17],[15,3,15,4],[12,8,13,8],[10,1,11,1]]}
[]
[null,"VYÚČTOVÁNÍ PRACOVNÍ CESTY"]
[null,"Datum",null,"Odjezd - příjezd",null,null,"Použitý dopr. prostředek2)","Vzdálenost\nv km 1)","Jízdné v případě AUV","Jízdné a místní přeprava","Stravné","Noc-\nležné","Nutné\nvedlejší výdaje","Celkem",null,null,null,"Upraveno"]
[null,null,null,null,null,"v hod.",null,null,null,"Kč","Kč","Kč","Kč","Kč",null,null,null,"Kč",null,null,null,null,null,null,"Vozidlo"]
[null,"2020-01-02","Odjezd",null,null,"10:00:00",null,null,{"$f":"IF(G5=\"VV\",ROUND(H5*$Z$14+H5*$Z$18,2),\"\")","v":""},null,{"$f":"R26","v":691},null,null,{"$f":"(N(I5)+J5+L5+M5)","v":0},null,null,{"$f":"VLOOKUP(P27,$AC$12:$AG$16,Q27+1,FALSE)","v":91},null,null,{"$f":"IF(B5=\"\",\"\",IF(B7=\"\",\"konec\",\"průběh\"))","v":"průběh"},{"$f":"VLOOKUP(IF(B5=\"\",0,(IF(B5=B3,1000,100)+IF(B5=B7,10,1))),List1!$B$22:$D$26,3,FALSE)","v":4},{"$f":"B5","v":"2020-01-02"},{"$f":"IF(V5<>0,B5+F5,\"\")","v":"2020-01-02T10:00:00"},null,"SPZ"]
[null,null,"Příjezd",null,null,"12:00:00",null,null,null,null,null,null,null,null,null,null,null,null,null,null,null,{"$f":"B5","v":"2020-01-02"},{"$f":"IF(V5<>0,B5+F6,\"\")","v":"2020-01-02T12:00:00"},null,"Palivo","nafta",null,null,null,{"$f":"AD8","v":43832}]
[null,"2020-01-05","Odjezd",null,null,"15:00:00",null,null,{"$f":"IF(G7=\"VV\",ROUND(H7*$Z$14+H7*$Z$18,2),\"\")","v":""},null,null,null,null,{"$f":"(N(I7)+J7+L7+M7)","v":0},null,null,{"$f":"VLOOKUP(P28,$AC$12:$AG$16,Q28+1,FALSE)","v":200},null,null,{"$f":"IF(B7=\"\",\"\",IF(B9=\"\",\"konec\",\"průběh\"))","v":"konec"},{"$f":"VLOOKUP(IF(B7=\"\",0,(IF(B7=B5,1000,100)+IF(B7=B9,10,1))),List1!$B$22:$D$26,3,FALSE)","v":4},{"$f":"B7","v":"2020-01-05"},{"$f":"IF(V7<>0,B7+F7,\"\")","v":"2020-01-05T15:00:00"},null,"spotřeba 1",3.1]
[null,null,"Příjezd",null,null,"20:00:00",null,null,null,null,null,null,null,null,null,null,null,null,null,null,null,{"$f":"B7","v":"2020-01-05"},{"$f":"IF(V7<>0,B7+F8,\"\")","v":"2020-01-05T20:00:00"},null,"spotřeba 2",null,null,null,null,{"$f":"MIN(B5:B20)","v":"2020-01-02"},{"$f":"MIN(W5:W20)","v":"2020-01-02T10:00:00"}]
[null,null,"Odjezd",null,null,null,null,null,{"$f":"IF(G9=\"VV\",ROUND(H9*$Z$14+H9*$Z$18,2),\"\")","v":""},null,null,null,null,{"$f":"(N(I9)+J9+L9+M9)","v":0},null,null,null,null,null,{"$f":"IF(B9=\"\",\"\",IF(B11=\"\",\"konec\",\"průběh\"))","v":""},{"$f":"VLOOKUP(IF(B9=\"\",0,(IF(B9=B7,1000,100)+IF(B9=B11,10,1))),List1!$B$22:$D$26,3,FALSE)","v":5},{"$f":"B9","v":"00:00:00"},{"$f":"IF(V9<>0,B9+F9,\"\")","v":""},null,"spotřeba 3",null,null,null,null,{"$f":"MAX(B5:B20)","v":"2020-01-05"},{"$f":"MAX(W5:W20)","v":"2020-01-05T20:00:00"}]
[null,null,"Příjezd",null,null,null,null,null,null,null,null,null,null,null,null,null,null,null,null,null,null,{"$f":"B9","v":"00:00:00"},{"$f":"IF(V9<>0,B9+F10,\"\")","v":""},null,"spotřeba 4"]
[null,null,"Odjezd",null,null,null,null,null,{"$f":"IF(G11=\"VV\",ROUND(H11*$Z$14+H11*$Z$18,2),\"\")","v":""},null,null,null,null,{"$f":"(N(I11)+J11+L11+M11)","v":0},null,null,null,null,null,{"$f":"IF(B11=\"\",\"\",IF(B13=\"\",\"konec\",\"průběh\"))","v":""},{"$f":"VLOOKUP(IF(B11=\"\",0,(IF(B11=B9,1000,100)+IF(B11=B13,10,1))),List1!$B$22:$D$26,3,FALSE)","v":5},{"$f":"B11","v":"00:00:00"},{"$f":"IF(V11<>0,B11+F11,\"\")","v":""},null,"Průměr - použitá spotřeba",{"$f":"ROUND(AVERAGE(Z7:Z10),2)","v":3.1},null,null,null,"0 - 5 hod","5 až 12 hod.","12 až 18 hod.","více než 18 hod."]
[null,null,"Příjezd",null,null,null,null,null,null,null,null,null,null,null,null,null,null,null,null,null,null,{"$f":"B11","v":"00:00:00"},{"$f":"IF(V11<>0,B11+F12,\"\")","v":""},null,"Cena paliva z dokladu",null,"Pokud nezadáte cenu paliva z dokladu, bude použita cena z vyhlášky",null,"počet jídel",0,"I","II","III"]
[null,null,"Odjezd",null,null,null,null,null,{"$f":"IF(G13=\"VV\",ROUND(H13*$Z$14+H13*$Z$18,2),\"\")","v":""},null,null,null,null,{"$f":"(N(I13)+J13+L13+M13)","v":0},null,null,null,null,null,{"$f":"IF(B13=\"\",\"\",IF(B15=\"\",\"konec\",\"průběh\"))","v":""},{"$f":"VLOOKUP(IF(B13=\"\",0,(IF(B13=B11,1000,100)+IF(B13=B15,10,1))),List1!$B$22:$D$26,3,FALSE)","v":5},{"$f":"B13","v":"00:00:00"},{"$f":"IF(V13<>0,B13+F13,\"\")","v":""},null,"Náhrady",null,null,null,0,0,90,140,200]
[null,null,"Příjezd",null,null,null,null,null,null,null,null,null,null,null,null,null,null,null,null,null,null,{"$f":"B13","v":"00:00:00"},{"$f":"IF(V13<>0,B13+F14,\"\")","v":""},null,"amortizace za km",4.0999999999999996,null,null,1,0,{"$f":"AE13*0.3","v":27},{"$f":"0.65*AF13","v":91},{"$f":"0.75*AG13","v":150}]
[null,null,"Odjezd",null,null,null,null,null,{"$f":"IF(G15=\"VV\",ROUND(H15*$Z$14+H15*$Z$18,2),\"\")","v":""},null,null,null,null,{"$f":"(N(I15)+J15+L15+M15)","v":0},null,null,null,null,null,{"$f":"IF(B15=\"\",\"\",IF(B17=\"\",\"konec\",\"průběh\"))","v":""},{"$f":"VLOOKUP(IF(B15=\"\",0,(IF(B15=B13,1000,100)+IF(B15=B17,10,1))),List1!$B$22:$D$26,3,FALSE)","v":5},{"$f":"B15","v":"00:00:00"},{"$f":"IF(V15<>0,B15+F15,\"\")","v":""},null,"benzin 95 oktanů",33.1,null,null,2,0,0,{"$f":"0.3*AF13","v":42},{"$f":"0.5*AG13","v":100}]
[null,null,"Příjezd",null,null,null,null,null,null,null,null,null,null,null,null,null,null,null,null,null,null,{"$f":"B15","v":"00:00:00"},{"$f":"IF(V15<>0,B15+F16,\"\")","v":""},null,"benzin 98 oktanů",37.1,null,null,3,0,0,0,{"$f":"0.25*AG13","v":50}]
[null,null,"Odjezd",null,null,null,null,null,{"$f":"IF(G17=\"VV\",ROUND(H17*$Z$14+H17*$Z$18,2),\"\")","v":""},null,null,null,null,0,null,null,null,null,null,{"$f":"IF(B17=\"\",\"\",IF(B19=\"\",\"konec\",\"průběh\"))","v":""},{"$f":"VLOOKUP(IF(B17=\"\",0,(IF(B17=B15,1000,100)+IF(B17=B19,10,1))),List1!$B$22:$D$26,3,FALSE)","v":5},{"$f":"B17","v":"00:00:00"},{"$f":"IF(V17<>0,B17+F17,\"\")","v":""},null,"nafta",33.6]
[null,null,"Příjezd",null,null,null,null,null,null,null,null,null,null,null,null,null,null,null,null,null,null,{"$f":"B17","v":"00:00:00"},{"$f":"IF(V17<>0,B17+F18,\"\")","v":""},null,"náhrada za km paliva",{"$f":"ROUND(IF(Z12=0,(VLOOKUP(Z6,Y15:Z17,2,FALSE)),Z12)*Z11/100,4)","v":1.0416000000000001},{"$f":"IF(Z12<>\"\",\"použita cena z dokladu\",\"použita cena z vyhlášky\")","v":"použita cena z vyhlášky"}]
[null,null,"Odjezd",null,null,null,null,null,{"$f":"IF(G19=\"VV\",ROUND(H19*$Z$14+H19*$Z$18,2),\"\")","v":""},null,null,null,null,0,null,null,null,null,null,{"$f":"IF(B19=\"\",\"\",IF(B21=\"\",\"konec\",\"průběh\"))","v":""},{"$f":"VLOOKUP(IF(B19=\"\",0,(IF(B19=B17,1000,100)+IF(B19=B21,10,1))),List1!$B$22:$D$26,3,FALSE)","v":5},{"$f":"B19","v":"00:00:00"},{"$f":"IF(V19<>0,B19+F19,\"\")","v":""}]
[null,null,"Příjezd",null,null,null,null,null,null,null,null,null,null,null,null,null,null,null,null,null,null,{"$f":"B19","v":"00:00:00"},{"$f":"IF(V19<>0,B19+F20,\"\")","v":""}]
[null,null,null,null,null,null,null,"Celkem",{"$f":"SUM(I5:I20)","v":0},{"$f":"SUM(J5:J20)","v":0},{"$f":"SUM(K5:K20)","v":691},{"$f":"IF(E23=\"ano\",0,SUM(L5:L20))","v":0},{"$f":"SUM(M5:M20)","v":0},{"$f":"SUM(I21:M21)","v":691}]
[null,"Strava poskytnuta bezplatně",null,null,"ano",null,null,"Záloha"]
[null,"Ubytování  poskytnuto bezplatně:*",null,null,"ano",null,null,{"$f":"IF((N21-N22)<0,\"Přeplatek (účtovatel vrátí)\", \"Doplatek (účtovateli bude doplaceno)\")","v":"Doplatek (účtovateli bude doplaceno)"},null,null,null,null,null,{"$f":"ABS(CEILING(N21-N22,1))","v":691}]
[null,null,null,null,null,null,null,null,null,null,null,null,null,null,null,{"$f":"IF(O28=\"\",1,IF((O27+O28)<=5/24,1,IF((O27+O28)<=12/24,2,IF((O27+O28)<=18/24,3,4))))","v":4},{"$f":"VLOOKUP((IF((P28+P27)>3,3,(P28+P27))),$AC$12:$AG$16,P24+1,FALSE)","v":150}]
[null,"V - Vlak","SV - služební vozidlo",null,"V - VV  - vlastní vozidlo s náhradou výdajů za vlak",null,null,null,null,null,"Bezplatně poskytnutá strava",null,null,null,null,"počet jídel","skupina","Celkem",null,null,null,null,null,null,"Přehled EU norem používaných v TP"]
[null,"A - autobus","CV -  spolujízda",null,"A - VV - vlastní vozidlo s náhradou výdajů za autobus",null,null,null,null,null,"Datum","snídaně","oběd","večeře","doba",null,null,{"$f":"SUM(R27:R43)","v":691},null,null,null,null,null,null,"80/1268/EHS","arit.průměr","3 údaje v TP"]
[null,"L - letadlo","VV - vlastní vozidlo",null,"L - VV - vlastní vozidlo s náhradou výdajů za letadlo",null,null,null,null,null,{"$f":"IF(AD8<>0,AD8,\"\")","v":"2020-01-02"},"ano",null,null,{"$f":"IF(K27<>\"\",IF(K28<>0,K27+1-AE8,AE9-AE8),\"\")","v":0.58333333333575865},{"$f":"IF($E$22=\"ne\",0,IF(LEFT(L27,1)=\"A\",1,0)+IF(LEFT(M27,1)=\"A\",1,0)+IF(LEFT(N27,1)=\"A\",1,0))","v":1},{"$f":"IF(OR(O27<=5/24+1/24/60/60/100,O27=\"\"),1,IF(O27<=12/24,2,IF(O27<=18/24,3,4)))","v":3},{"$f":"IF(AND(K29=\"\",(Q7+Q5)<Q24),0,Q5)","v":91},null,null,null,null,null,null,"93/116/ES","třetí údaj"]
[null,null,null,null,null,null,null,null,null,null,{"$f":"IF(($AD$8+List1!A2)<=$AD$9,$AD$8+List1!A2,\"\")","v":"2020-01-03"},null,null,null,{"$f":"IF(K28<>\"\",IF(K29<>\"\",1,$AE$9-K28),\"\")","v":1},0,{"$f":"IF(OR(O28<=5/24+1/24/60/60/100,O28=\"\"),1,IF(O28<=12/24,2,IF(O28<=18/24,3,4)))","v":4},{"$f":"IF(AND(K29=\"\",(Q7+Q5)<Q24),Q24,Q7)","v":200},null,null,null,null,null,null,"1999/100/ES","třetí údaj"]
[null,null,null,null,null,null,null,null,null,null,{"$f":"IF(($AD$8+List1!A3)<=$AD$9,$AD$8+List1!A3,\"\")","v":"2020-01-04"},null,null,null,1,0,4,{"$f":"VLOOKUP(P29,$AC$12:$AG$16,Q29+1,FALSE)","v":200},null,null,null,null,null,null,"2004/3/ES","třetí údaj"]
[null,"Zdroj financování (PF UK, grant, jiný zdroj):",null,null,null,"Zpráva o výsledku pracovní cesty byla podána dne: ",null,null,null,null,{"$f":"IF(($AD$8+List1!A4)<=$AD$9,$AD$8+List1!A4,\"\")","v":"2020-01-05"},null,null,null,0.83333333333575865,0,4,200,null,null,null,null,null,null,"EU 692/2008","třetí údaj"]
[null,null,null,null,null,null,null,null,null,null,{"$f":"IF(($AD$8+List1!A5)<=$AD$9,$AD$8+List1!A5,\"\")","v":""},null,null,null,"",0,1,0,null,null,null,null,null,null,"EU 692/2008A,…F","třetí údaj"]
[null,null,null,null,null,null,null,null,null,null,{"$f":"IF(($AD$8+List1!A6)<=$AD$9,$AD$8+List1!A6,\"\")","v":""},null,null,null,"",0,1,0,null,null,null,null,null,null,"EU/566/2011","třetí údaj"]
[null,null,null,null,null,null,null,null,null,null,{"$f":"IF(($AD$8+List1!A7)<=$AD$9,$AD$8+List1!A7,\"\")","v":""},null,null,null,"",0,1,0,null,null,null,null,null,null,"2007/46/ES","třetí údaj"]
[null,"Číslo bankovního účtu pro zasílání náhrad účtovateli:",null,null,null,null,null,null,null,null,{"$f":"IF(($AD$8+List1!A8)<=$AD$9,$AD$8+List1!A8,\"\")","v":""},null,null,null,"",0,1,0,null,null,null,null,null,null,"EHK 101,R101.00","třetí údaj"]
[null,null,null,null,null,null,null,null,null,null,{"$f":"IF(($AD$8+List1!A9)<=$AD$9,$AD$8+List1!A9,\"\")","v":""},null,null,null,"",0,1,0,null,null,null,null,null,null,"459/2012/EU","třetí údaj"]
[null,null,null,null,null,null,null,null,null,null,{"$f":"IF(($AD$8+List1!A10)<=$AD$9,$AD$8+List1!A10,\"\")","v":""},null,null,null,"",0,1,0,null,null,null,null,null,null,"630/2012/EU ","třetí údaj"]
[null,"Prohlašuji, že jsem všechny údaje uvedl úplně a správně.",null,null,null,null,null,null,null,null,{"$f":"IF(($AD$8+List1!A11)<=$AD$9,$AD$8+List1!A11,\"\")","v":""},null,null,null,"",0,1,0,null,null,null,null,null,null,"EU195/2013","třetí údaj"]
[null,null,null,null,null,null,null,null,null,null,{"$f":"IF(($AD$8+List1!A12)<=$AD$9,$AD$8+List1!A12,\"\")","v":""},null,null,null,"",0,1,0,null,null,null,null,null,null,"715/2007/ES","třetí údaj"]
[null,null,null,null,null,null,null,null,null,null,{"$f":"IF(($AD$8+List1!A13)<=$AD$9,$AD$8+List1!A13,\"\")","v":""},null,null,null,"",0,1,0,null,null,null,null,null,null,"EU136/2014","třetí údaj"]
[null,null,null,null,null,null,null,null,null,null,{"$f":"IF(($AD$8+List1!A14)<=$AD$9,$AD$8+List1!A14,\"\")","v":""},null,null,null,"",0,1,0,null,null,null,null,null,null,"EU2016/646","třetí údaj"]
[null,null,null,null,null,null,null,null,null,null,{"$f":"IF(($AD$8+List1!A15)<=$AD$9,$AD$8+List1!A15,\"\")","v":""},null,null,null,"",0,1,0,null,null,null,null,null,null,"EU2017/1347","třetí údaj"]
[null,"Datum a podpis účtovatele",null,null,null,null,null,null,null,null,{"$f":"IF(($AD$8+List1!A16)<=$AD$9,$AD$8+List1!A16,\"\")","v":""},null,null,null,"",0,1,0,null,null,null,null,null,null,"EU2015/45","třetí údaj"]
[null,null,null,null,null,null,null,null,null,null,{"$f":"IF(($AD$8+List1!A17)<=$AD$9,$AD$8+List1!A17,\"\")","v":""},null,null,null,"",0,1,0,null,null,null,null,null,null,"jiná norma","arit.průměr"]
[]
[]
[]
[null,"Se způsobem provedení vyučtování souhlasí:"]
[]
[]
[null,null,null,null,null,null,null,null,null,"Podpis přímého nadřízeného nebo řešitele grantu, projektu…"]
[]
[null,"Datum a podpis správce rozpočtu (tajemníka)"]
[]
[]
[]
[null,"Podpis vedoucího ekonom. odd. ",null,null,null,null,null,null,null,"Podpis zaměstnance, který kontroloval \na upravil vyúčtování (pokladní)"]

{"sheet":"Vyúčtování","index":2,"n_rows":60,"n_cols":46,"rows_kept":60,"cut":false,"hidden":false,"merged":[[37,1,37,6],[38,1,39,4],[41,1,43,8],[59,5,61,9],[59,1,61,3],[55,1,56,3],[46,1,47,8],[55,5,56,8],[50,1,51,3],[50,5,50,8],[21,9,22,9],[23,3,23,4],[19,3,19,4],[29,1,29,6],[26,1,27,2],[26,3,26,4],[27,3,27,4],[21,3,21,4],[22,3,22,4],[25,3,25,4],[20,3,20,4],[24,3,24,4],[11,7,11,8],[16,5,16,6],[34,1,35,8],[33,1,33,8],[19,1,19,2],[30,1,30,6],[2,1,2,3],[2,4,2,10],[28,36,28,38],[7,6,7,10],[6,31,7,31],[9,1,9,3],[6,32,7,32],[9,6,9,10],[9,18,9,19],[20,1,23,2],[24,1,25,2],[16,1,16,2],[28,1,28,6],[19,10,19,14],[24,10,24,14],[6,1,6,3],[0,45,0,49],[6,26,9,28],[0,8,0,14],[8,6,8,12],[7,38,9,50],[4,32,5,32],[4,31,5,31],[8,18,8,19],[1,1,1,14],[3,13,3,14],[7,1,7,3],[4,13,4,14],[4,1,4,3],[4,4,4,10],[6,6,6,10],[5,13,6,14],[18,1,18,14],[10,10,10,14],[15,12,15,14],[3,1,3,3],[3,4,3,10],[8,13,8,14],[15,1,15,2],[15,9,15,10],[16,9,16,10],[5,6,5,10],[15,5,15,6],[13,1,13,3],[8,1,8,3],[11,1,11,3],[10,1,10,3],[9,13,9,14]]}
[null,null,null,null,null,null,null,null,"Příloha OD  č. 1/2022",null,null,null,null,null,null,null,null,null,null,null,null,null,null,null,null,null,null,{"$f":"\"Kurzy ČNB jsou aktualizovány k \"&TEXT(AN2,\"dd.mm.rrrr\")","v":"Kurzy ČNB jsou aktualizovány k 06.01.2023"},null,null,null,null,null,null,{"$f":"60*60*24","v":86400},null,null,null,null,null,null,null,null,null,null,{"$f":"IFERROR(\"Vyúčtování pracovní cesty a zprávu o pracovní cestě je nutné odevzdat nejpozději do \" &TEXT(List1!$AC$1,\"dd.mm.rrrr\")&\".\",\"\")","v":""}]
[null,"VYÚČTOVÁNÍ ZAHRANIČNÍ PRACOVNÍ CESTY",null,null,null,null,null,null,null,null,null,null,null,null,null,null,null,null,null,null,null,null,null,null,null,null,null,null,null,null,null,null,null,null,null,null,null,null,null,{"$f":"(MAX('Kurzy CNB'!$A$2:$A$370))","v":"2023-01-06"}]
[null,"Jméno a příjmení",null,null,{"$f":"T(Příkaz!D5)","v":""}]
[null,"Název akce/Účel:",null,null,{"$f":"T(Příkaz!D11)","v":""},null,null,null,null,null,null,null,null,"stát",null,null,null,null,null,null,null,null,null,null,null,null,null,null,null,null,null,null,null,null,null,null,"Vozidlo"]
[null,"Místo konání akce",null,null,{"$f":"T(Příkaz!D9)","v":""},null,null,null,null,null,null,null,null,null,null,null,null,null,null,null,null,null,null,null,null,null,null,null,null,null,null,null,null,null,null,null,"SPZ"]
[null,null,null,null,"datum","čas","místo",null,null,null,null,null,null,"základní sazba zahraničního stravného",null,null,null,null,null,null,null,null,null,null,null,null,null,null,null,null,null,null,null,null,null,null,"Palivo","benzin 95 oktanů",null,null,null,{"$f":"AP8","v":0}]
[null,"Zahájení cesty",null,null,"2023-01-03","07:00:00",null,null,null,null,null,null,null,null,null,null,null,null,{"$f":"E7+F7","v":"2023-01-03T07:00:00"},null,null,null,null,null,null,null,"Neposkytnutí náhrady cestovních výdajů\n dle čl.15 OD 1/2022 v případě, že byla zaměstnanci poskytnuta náhrada v zahraničí nebo z jiného zdroje",null,null,null,null,null,null,null,null,null,"spotřeba 1",4,"Doplňte kombinovanou spotřebu dle norem EU z TP a ostatní pole ponechte prázdné"]
[null,"Překročení státní hranice/odlet",null,null,"2023-01-03","07:00:00",{"$f":"IF(S8<S7,\"překročení hranice nemůže být před začátkem cesty\",\"\")","v":""},null,null,null,null,null,null,{"$f":"IFERROR(VLOOKUP(N5,List1!V3:Y180,4,FALSE),\"Vyberte\")","v":"Vyberte"},{"$f":"IFERROR(VLOOKUP(N5,List1!V3:Y180,2,FALSE),\"stát\")","v":"stát"},null,null,null,{"$f":"E8+F8","v":"2023-01-03T07:00:00"},null,null,null,null,null,null,null,null,null,null,null,null,null,null,null,null,null,"spotřeba 2",null,"Pokud údaj o kombinované spotřebě v technickém průkazu není, vypočte se spotřeba PHM vozidla aritmetickým průměrem ze všech údajů o spotřebě uvedených v technickém průkazu."]
[null,"Překročení státní hranice/přílet",null,null,"2023-01-04","23:00:00",{"$f":"IF(OR(E7>MAX('Kurzy CNB'!A2:A370),E16>MAX('Kurzy CNB'!A2:A370)),\"Začátek cesty nebo datum zálohy je v období mimo načtené kurzy ČNB\",\"\")","v":""},null,null,null,null,null,null,"použit kurz ze dne",null,null,null,null,{"$f":"E9+F9","v":"2023-01-04T23:00:00"},null,null,null,null,null,null,null,null,null,null,null,null,null,null,null,null,null,"spotřeba 3"]
[null,"Ukončení cesty",null,null,"2023-01-04","23:00:00",null,null,null,null,null,null,null,{"$f":"IF(AND(E16<>\"\",E14<>\"NE\",OR(F16<>\"\",F17<>\"\")),E16,E7)","v":"2023-01-03"},null,null,null,null,{"$f":"E10+F10","v":"2023-01-04T23:00:00"},null,null,null,null,null,null,null,null,null,null,null,null,null,null,null,null,null,"spotřeba 4"]
[null,"Strava poskytnuta bezplatně",null,null,"Ne",null,"Celková vzdálenost v km  při použití VV",null,null,null,"Poskytnuté náhrady za výdaje:",null,null,null,null,null,null,null,null,null,null,null,null,null,null,null,"nárok","náhrada","k vyúčtování",null,null,null,null,null,null,null,"Průměr - použitá spotřeba",{"$f":"ROUND(AVERAGE(AL7:AL10),2)","v":4},null,null,null,"0 - 5 hod","5 až 12 hod.","12 až 18 hod.","více než 18 hod."]
[null,"Použitý dopr. prostředek",null,null,"A",null,null,{"$f":"IF(E12=\"VV\",CEILING(G12*$AL$16+G12*$AL$21,0.01),\"\")","v":""},null,null,"ubytování",null,"EUR",null,{"$f":"IF(N12<>\"\",IF(M12<>\"\",(IF(M12=\"CZK\",1,VLOOKUP($N$10,'Kurzy CNB'!$A$1:$AJ$315,VLOOKUP(M12,List1!$S$4:$T$36,2,FALSE),TRUE)))*N12/VLOOKUP(M12,List1!$S$3:$U$36,3,FALSE),0),0)","v":0},null,null,null,null,null,null,null,null,null,null,null,{"$f":"SUM(I25:I26)","v":0},{"$f":"O12","v":0},{"$f":"IF((AA12-AB12)<0,0,AA12-AB12)","v":0},null,null,null,null,null,null,null,"Cena paliva z dokladu",30,"CZK",null,"počet jídel",0,"I","II","III"]
[null,null,null,null,null,null,null,null,null,null,"jízdné",null,"EUR",null,{"$f":"IF(N13<>\"\",IF(M13<>\"\",(IF(M13=\"CZK\",1,VLOOKUP($N$10,'Kurzy CNB'!$A$1:$AJ$315,VLOOKUP(M13,List1!$S$4:$T$36,2,FALSE),TRUE)))*N13/VLOOKUP(M13,List1!$S$3:$U$36,3,FALSE),0),0)","v":0},null,null,null,null,null,null,null,null,null,null,null,{"$f":"SUM(I21:I24)","v":0},{"$f":"O13","v":0},{"$f":"IF((AA13-AB13)<0,0,AA13-AB13)","v":0},null,null,null,null,null,null,null,"Cena paliva z dokladu CZK",{"$f":"CEILING(IF(AL12<>\"\",IF(AM12<>\"\",(IF(AM12=\"CZK\",1,VLOOKUP($N$10,'Kurzy CNB'!$A$1:$AJ$315,VLOOKUP(AM12,List1!$S$4:$T$36,2,FALSE),TRUE)))*AL12/VLOOKUP(AM12,List1!$S$3:$U$36,3,FALSE),0),0),0.0001)","v":30},null,null,0,0,138,205,316]
[null,"Poskytnuta záloha",null,null,"Ne",null,"částka","měna","kurz ČNB",null,"ostatní",null,"EUR",null,{"$f":"IF(N14<>\"\",IF(M14<>\"\",(IF(M14=\"CZK\",1,VLOOKUP($N$10,'Kurzy CNB'!$A$1:$AJ$315,VLOOKUP(M14,List1!$S$4:$T$36,2,FALSE),TRUE)))*N14/VLOOKUP(M14,List1!$S$3:$U$36,3,FALSE),0),0)","v":0},null,null,null,null,null,null,null,null,null,null,null,{"$f":"SUM(I27:I28)","v":0},0,0,null,null,null,null,null,null,null,"Náhrady",null,null,null,1,0,{"$f":"AQ13*0.3","v":41.4},{"$f":"0.65*AR13","v":133.25},{"$f":"0.75*AS13","v":237}]
[]
[null,"Záloha 1 ",null," vydaná dne",null,0,null,"USD",{"$f":"IF(OR(E16=\"\",H16=\"CZK\"),1,VLOOKUP(E16,'Kurzy CNB'!$A$1:$AJ$315,VLOOKUP(H16,List1!$S$4:$T$36,2,FALSE),FALSE))","v":1},{"$f":"CEILING(I16*F16,0.001)","v":0},null,null,"Poskytnuté náhrady za stravné",null,null,null,null,null,null,null,null,null,null,null,null,null,null,null,null,null,null,null,null,null,null,null,"amortizace za km",5.2,null,null,2,0,0,{"$f":"0.3*AR13","v":61.5},{"$f":"0.5*AS13","v":158}]
[null,"Záloha 2",null," vydaná dne",{"$f":"E16","v":"00:00:00"},0,null,"CZK",{"$f":"IF(OR(E17=\"\",H17=\"CZK\",H17=\"\"),1,VLOOKUP(E17,'Kurzy CNB'!$A$1:$AJ$315,VLOOKUP(H17,List1!$S$4:$T$36,2,FALSE),TRUE))","v":1},{"$f":"CEILING(I17*F17,0.001)","v":0},null,null,"EUR",null,{"$f":"IF(N17<>\"\",IF(M17<>\"\",(IF(M17=\"CZK\",1,VLOOKUP($N$10,'Kurzy CNB'!$A$1:$AJ$315,VLOOKUP(M17,List1!$S$4:$T$36,2,FALSE),TRUE)))*N17/VLOOKUP(M17,List1!$S$3:$U$36,3,FALSE),0),0)","v":0},null,null,null,null,null,null,null,null,null,null,null,{"$f":"SUM(O22:O23)","v":0},{"$f":"O17","v":0},{"$f":"IF((AA17-AB17)<0,0,AA17-AB17)","v":0},null,null,null,null,null,null,null,"benzin 95 oktanů",41.2,null,null,3,0,0,0,{"$f":"0.25*AS13","v":79}]
[null,null,null,null,null,null,null,null,null,null,null,null,null,null,null,null,null,null,null,null,null,null,null,null,null,null,null,"Celkem",{"$f":"AC12+AC13+AC14+AC17","v":0},null,null,null,null,null,null,null,"benzin 98 oktanů",45.2]
[null,"VYÚČTOVÁNÍ",null,null,null,null,null,null,null,null,null,null,null,null,null,null,null,null,null,null,null,null,null,null,null,null,null,null,null,null,null,null,null,null,null,null,"nafta",44.1]
[null,null,null,"Popis",null,"měna","částka","měna","částka",null,"Stravné",null,null,null,null,null,null,null,null,null,null,null,null,null,null,null,null,null,null,null,null,null,null,null,null,null,"elektřina",6]
[null,"Jízdní výdaje",null,"Vlastní vozidlo - VV",null,"CZK",{"$f":"H12","v":""},"CZK",{"$f":"G21","v":""},null,"měna",null,"částka","měna","částka",null,null,null,null,null,null,null,null,null,null,null,null,null,null,null,null,null,null,null,null,null,"náhrada za km paliva",{"$f":"ROUND(IF(AL13=0,(VLOOKUP(AL6,AK17:AL20,2,FALSE)),AL13)*AL11/100,4)","v":1.2},{"$f":"IF(AL13<>\"\",\"použita cena z dokladu\",\"použita cena z vyhlášky\")","v":"použita cena z dokladu"}]
[null,null,null,null,null,"CZK",null,"CZK",{"$f":"IF(G22<>\"\",IF(F22<>\"\",(IF(F22=\"CZK\",1,VLOOKUP($N$10,'Kurzy CNB'!$A$1:$AJ$315,VLOOKUP(F22,List1!$S$4:$T$36,2,FALSE),TRUE)))*G22/VLOOKUP(F22,List1!$S$3:$U$36,3,FALSE),\"\"),\"\")","v":""},null,"CZK",null,{"$f":"CEILING(SUM(AA27:AA55),0.01)","v":0},"CZK",{"$f":"M22","v":0}]
[null,null,null,null,null,"EUR",null,"CZK",{"$f":"IF(G23<>\"\",IF(F23<>\"\",(IF(F23=\"CZK\",1,VLOOKUP($N$10,'Kurzy CNB'!$A$1:$AJ$315,VLOOKUP(F23,List1!$S$4:$T$36,2,FALSE),TRUE)))*G23/VLOOKUP(F23,List1!$S$3:$U$36,3,FALSE),\"\"),\"\")","v":""},null,{"$f":"O8","v":"stát"},null,{"$f":"IFERROR(CEILING(SUM(AB27:AB55),0.01),0)","v":0},"CZK",{"$f":"IFERROR(IF(M23<>\"\",VLOOKUP($N$10,'Kurzy CNB'!$A$1:$AJ$315,VLOOKUP(K23,List1!$S$4:$T$36,2,FALSE),TRUE))*M23/VLOOKUP(K23,List1!$S$3:$U$36,3,FALSE),0)","v":0},null,null,null,null,null,null,null,null,null,null,null,null,null,null,null,null,null,null,null,null,null,null,null,null,null,null,"zahra"]
[null,null,null,null,null,null,null,"CZK",{"$f":"IF(G24<>\"\",IF(F24<>\"\",(IF(F24=\"CZK\",1,VLOOKUP($N$10,'Kurzy CNB'!$A$1:$AJ$315,VLOOKUP(F24,List1!$S$4:$T$36,2,FALSE),TRUE)))*G24/VLOOKUP(F24,List1!$S$3:$U$36,3,FALSE),\"\"),\"\")","v":""}]
[null,"Výdaje za ubytování",null,null,null,"EUR",null,"CZK",{"$f":"IF(G25<>\"\",IF(F25<>\"\",(IF(F25=\"CZK\",1,VLOOKUP($N$10,'Kurzy CNB'!$A$1:$AJ$315,VLOOKUP(F25,List1!$S$4:$T$36,2,FALSE),TRUE)))*G25/VLOOKUP(F25,List1!$S$3:$U$36,3,FALSE),\"\"),\"\")","v":""},null,"Bezplatně poskytnutá strava",null,null,null,null,null,null,null,null,null,null,null,"počet jídel",null,null,null,"CZK",{"$f":"O8","v":"stát"},null,null,null,null,null,null,null,null,null,null,null,null,null,"0 - 1 hod","1 až 12 hod.","12 až 18 hod.","více než 18 hod."]
[null,null,null,null,null,null,null,"CZK",{"$f":"IF(G26<>\"\",IF(F26<>\"\",(IF(F26=\"CZK\",1,VLOOKUP($N$10,'Kurzy CNB'!$A$1:$AJ$315,VLOOKUP(F26,List1!$S$4:$T$36,2,FALSE),TRUE)))*G26/VLOOKUP(F26,List1!$S$3:$U$36,3,FALSE),\"\"),\"\")","v":""},null,"Datum",null,"snídaně","oběd","večeře","doba","začátek zahr","konec zahr","doba zahr","doba CR","přep zahr","přep CR",null,"kod zahr","kod tuz",null,"stravne CR","stravne zahr",null,null,null,null,null,null,null,null,null,null,null,null,"počet jídel",0,"I","II","III"]
[null,"Ostatní výdaje",null,null,null,"EUR",null,"CZK",{"$f":"IF(G27<>\"\",IF(F27<>\"\",(IF(F27=\"CZK\",1,VLOOKUP($N$10,'Kurzy CNB'!$A$1:$AJ$315,VLOOKUP(F27,List1!$S$4:$T$36,2,FALSE),TRUE)))*G27/VLOOKUP(F27,List1!$S$3:$U$36,3,FALSE),\"\"),\"\")","v":""},null,{"$f":"IF(E7<>0,E7,\"\")","v":"2023-01-03"},null,"Ano","Ano",null,{"$f":"IF(K27<>\"\",IF(K28<>\"\",K27+1-S7,S10-S7),\"\")","v":0.70833333333575865},{"$f":"IF(OR($E$8>K27,$E$9<K27),\"\",IF(K27=$E$8,$S$8,K27))","v":"2023-01-03T07:00:00"},{"$f":"IF(OR($E$8>K27,$E$9<K27),\"\",IF(K27=$E$9,$S$9,K27+1))","v":"2023-01-04"},{"$f":" IF(Q27=\"\",\"\",R27-Q27)","v":0.70833333333575865},{"$f":"IF(P27<>\"\",IF(S27<>\"\",P27-S27,P27),\"\")","v":0},{"$f":"IF(T27<5/24,S27,IF(S27<=(5/24+0.0000001),\"\",S27))","v":0.70833333333575865},{"$f":"IF(T27>=5/24,IF(S27<=(5/24+0.0000001),T27+S27,T27),T27)","v":0},{"$f":"IF($E$11=\"ne\",0,IF(LEFT(M27,1)=\"A\",1,0)+IF(LEFT(N27,1)=\"A\",1,0)+IF(LEFT(O27,1)=\"A\",1,0))","v":0},{"$f":"IF(U27<>\"\",(IF(U27<(1/24-0.0000001),1,(IF(U27<=12/24,2,IF(U27<=18/24,3,4))))),\"\")","v":3},{"$f":"IF(V27<>\"\",(IF(V27<5/24,1,(IF(V27<=12/24,2,IF(V27<=18/24,3,4))))),\"\")","v":1},null,{"$f":"IF(Y27<>\"\",IF(X27=\"\",VLOOKUP(W27,$AO$12:$AS$17,Y27+1,FALSE),VLOOKUP(0,$AO$12:$AS$17,Y27+1)),\"\")","v":0},{"$f":"IF(X27=\"\",\"\",IF(Y27=1,VLOOKUP(W27,$AO$26:$AS$30,X27+1,FALSE),VLOOKUP(W27,$AO$26:$AS$30,3,FALSE)))","v":{"$error":"#VALUE!"}},null,null,null,null,null,null,null,null,null,null,null,null,0,0,{"$f":"AS27/3","v":{"$error":"#VALUE!"}},{"$f":"AS27*2/3","v":{"$error":"#VALUE!"}},{"$f":"N8","v":"Vyberte"}]
[null,null,null,null,null,null,null,"CZK",{"$f":"IF(G28<>\"\",IF(F28<>\"\",(IF(F28=\"CZK\",1,VLOOKUP($N$10,'Kurzy CNB'!$A$1:$AJ$315,VLOOKUP(F28,List1!$S$4:$T$36,2,FALSE),TRUE)))*G28/VLOOKUP(F28,List1!$S$3:$U$36,3,FALSE),\"\"),\"\")","v":""},null,{"$f":"IF(($E$7+List1!A2)<=$E$10,$E$7+List1!A2,\"\")","v":"2023-01-04"},null,null,null,null,{"$f":"IF(K28<>\"\",IF(K29<>\"\",1,$S$10-K28),\"\")","v":0.95833333333575865},{"$f":"IF(OR($E$8>K28,$E$9<K28),\"\",IF(K28=$E$8,$S$8,K28))","v":"2023-01-04"},{"$f":"IF(OR($E$8>K28,$E$9<K28),\"\",IF(K28=$E$9,$S$9,K28+1))","v":"2023-01-04T23:00:00"},{"$f":" IF(Q28=\"\",\"\",R28-Q28)","v":0.95833333333575865},0,{"$f":"IF(T28<5/24,S28,IF(S28<=(5/24+0.0000001),\"\",S28))","v":0.95833333333575865},{"$f":"IF(T28>=5/24,IF(S28<=(5/24+0.0000001),T28+S28,T28),T28)","v":0},0,{"$f":"IF(U28<>\"\",(IF(U28<(1/24-0.0000001),1,(IF(U28<=12/24,2,IF(U28<=18/24,3,4))))),\"\")","v":4},{"$f":"IF(V28<>\"\",(IF(V28<5/24,1,(IF(V28<=12/24,2,IF(V28<=18/24,3,4))))),\"\")","v":1},null,0,{"$f":"IF(X28=\"\",\"\",IF(Y28=1,VLOOKUP(W28,$AO$26:$AS$30,X28+1,FALSE),VLOOKUP(W28,$AO$26:$AS$30,3,FALSE)))","v":"Vyberte"},null,null,null,null,null,null,null,null,null,null,null,null,1,0,{"$f":"AQ27*0.3","v":{"$error":"#VALUE!"}},{"$f":"0.65*AR27","v":{"$error":"#VALUE!"}},{"$f":"0.75*AS27","v":{"$error":"#VALUE!"}}]
[null,"Celkem (včetně stravného)",null,null,null,null,null,"CZK",{"$f":"AC12+AC13+AC14+AC17","v":0},null,{"$f":"IF(($E$7+List1!A3)<=$E$10,$E$7+List1!A3,\"\")","v":""},null,null,null,null,"","",{"$f":"IF(OR($E$8>K29,$E$9<K29),\"\",IF(K29=$E$9,$S$9,K29+1))","v":""},"","",{"$f":"IF(T29<5/24,S29,IF(S29<=(5/24+0.0000001),\"\",S29))","v":""},"",0,"","",null,"","",null,null,null,null,null,null,null,null,"Přehled EU norem používaných v TP",null,null,null,2,0,0,{"$f":"0.3*AR27","v":{"$error":"#VALUE!"}},{"$f":"0.5*AS27","v":{"$error":"#VALUE!"}}]
[null,"Záloha",null,null,null,null,null,"CZK",{"$f":"IF(E14=\"ne\",0,CEILING(J16+J17,0.01))","v":0},null,{"$f":"IF(($E$7+List1!A4)<=$E$10,$E$7+List1!A4,\"\")","v":""},null,null,null,null,"","","","","","","",0,"","",null,"","",null,null,null,null,null,null,null,null,"80/1268/EHS","arit.průměr","3 údaje v TP",null,3,0,0,0,{"$f":"0.25*AS27","v":{"$error":"#VALUE!"}}]
[null,{"$f":"IF(I31<0,\"Přeplatek (zaměstnanec vrátí)\", \"Doplatek (zaměstnanci bude doplaceno)\")","v":"Doplatek (zaměstnanci bude doplaceno)"},null,null,null,null,null,"CZK",{"$f":"(I29-I30)/(IF(H31=\"CZK\",1,VLOOKUP($N$10,'Kurzy CNB'!$A$1:$AJ$315,VLOOKUP(H31,List1!$S$4:$T$36,2,FALSE),TRUE))/VLOOKUP(H31,List1!$S$3:$U$36,3,FALSE))","v":0},null,{"$f":"IF(($E$7+List1!A5)<=$E$10,$E$7+List1!A5,\"\")","v":""},null,null,null,null,"","","","","","","",0,"","",null,"","",null,null,null,null,null,null,null,null,"93/116/ES","třetí údaj"]
[null,null,null,null,null,null,null,null,null,null,{"$f":"IF(($E$7+List1!A6)<=$E$10,$E$7+List1!A6,\"\")","v":""},null,null,null,null,"","","","","","","",0,"","",null,"","",null,null,null,null,null,null,null,null,"1999/100/ES","třetí údaj"]
[null,"Zdroj financování:",null,null,null,null,null,null,null,null,{"$f":"IF(($E$7+List1!A7)<=$E$10,$E$7+List1!A7,\"\")","v":""},null,null,null,null,"","","","","","","",0,"","",null,"","",null,null,null,null,null,null,null,null,"2004/3/ES","třetí údaj"]
[null,{"$f":"\"jízdné: \"&Příkaz!D18&\", ubytování: \"&Příkaz!D26&\", stravné: \"&Příkaz!D28&\", vedl. výdaje: \"&Příkaz!D30","v":"jízdné: , ubytování: , stravné: , vedl. výdaje: "},null,null,null,null,null,null,null,null,{"$f":"IF(($E$7+List1!A8)<=$E$10,$E$7+List1!A8,\"\")","v":""},null,null,null,null,"","","","","","","",0,"","",null,"","",null,null,null,null,null,null,null,null,"EU 692/2008","třetí údaj"]
[null,null,null,null,null,null,null,null,null,null,{"$f":"IF(($E$7+List1!A9)<=$E$10,$E$7+List1!A9,\"\")","v":""},null,null,null,null,"","","","","","","",0,"","",null,"","",null,null,null,null,null,null,null,null,"EU 692/2008A,…F","třetí údaj"]
[null,null,null,null,null,null,null,null,null,null,{"$f":"IF(($E$7+List1!A10)<=$E$10,$E$7+List1!A10,\"\")","v":""},null,null,null,null,"","","","","","","",0,"","",null,"","",null,null,null,null,null,null,null,null,"EU/566/2011","třetí údaj"]
[null,null,null,null,null,null,null,null,null,null,{"$f":"IF(($E$7+List1!A11)<=$E$10,$E$7+List1!A11,\"\")","v":""},null,null,null,null,"","","","","","","",0,"","",null,"","",null,null,null,null,null,null,null,null,"2007/46/ES","třetí údaj"]
[null,"Číslo bankovního účtu pro zasílání náhrad zaměstnanci:",null,null,null,null,null,null,null,null,{"$f":"IF(($E$7+List1!A12)<=$E$10,$E$7+List1!A12,\"\")","v":""},null,null,null,null,"","","","","","","",0,"","",null,"","",null,null,null,null,null,null,null,null,"EHK 101,R101.00","třetí údaj"]
[null,null,null,null,null,null,null,null,null,null,{"$f":"IF(($E$7+List1!A13)<=$E$10,$E$7+List1!A13,\"\")","v":""},null,null,null,null,"","","","","","","",0,"","",null,"","",null,null,null,null,null,null,null,null,"459/2012/EU","třetí údaj"]
[null,null,null,null,null,null,null,null,null,null,{"$f":"IF(($E$7+List1!A14)<=$E$10,$E$7+List1!A14,\"\")","v":""},null,null,null,null,"","","","","","","",0,"","",null,"","",null,null,null,null,null,null,null,null,"630/2012/EU ","třetí údaj"]
[null,null,null,null,null,null,null,null,null,null,{"$f":"IF(($E$7+List1!A15)<=$E$10,$E$7+List1!A15,\"\")","v":""},null,null,null,null,"","","","","","","",0,"","",null,"","",null,null,null,null,null,null,null,null,"EU195/2013","třetí údaj"]
[null,"Prohlašuji, že jsem všechny údaje uvedl úplně, a že je  zpráva ze zahraniční  pracovní cesty přiložena.",null,null,null,null,null,null,null,null,{"$f":"IF(($E$7+List1!A16)<=$E$10,$E$7+List1!A16,\"\")","v":""},null,null,null,null,"","","","","","","",0,"","",null,"","",null,null,null,null,null,null,null,null,"715/2007/ES","třetí údaj"]
[null,null,null,null,null,null,null,null,null,null,{"$f":"IF(($E$7+List1!A17)<=$E$10,$E$7+List1!A17,\"\")","v":""},null,null,null,null,"","","","","","","",0,"","",null,"","",null,null,null,null,null,null,null,null,"EU136/2014","třetí údaj"]
[null,null,null,null,null,null,null,null,null,null,{"$f":"IF(($E$7+List1!A18)<=$E$10,$E$7+List1!A18,\"\")","v":""},null,null,null,null,"","","","","",{"$f":"IF(T44<5/24,S44,IF(S44<=(5/24+0.0000001),\"\",S44))","v":""},"",0,"","",null,"","",null,null,null,null,null,null,null,null,"EU2016/646","třetí údaj"]
[null,null,null,null,null,null,null,null,null,null,{"$f":"IF(($E$7+List1!A19)<=$E$10,$E$7+List1!A19,\"\")","v":""},null,null,null,null,"","","","","",{"$f":"IF(T45<5/24,S45,IF(S45<=(5/24+0.0000001),\"\",S45))","v":""},"",0,"","",null,"","",null,null,null,null,null,null,null,null,"EU2017/1347","třetí údaj"]
[null,null,null,null,null,null,null,null,null,null,{"$f":"IF(($E$7+List1!A20)<=$E$10,$E$7+List1!A20,\"\")","v":""},null,null,null,null,"","","","","",{"$f":"IF(T46<5/24,S46,IF(S46<=(5/24+0.0000001),\"\",S46))","v":""},"",0,"","",null,"","",null,null,null,null,null,null,null,null,"EU2015/45","třetí údaj"]
[null,"Datum a podpis zaměstnance",null,null,null,null,null,null,null,null,{"$f":"IF(($E$7+List1!A21)<=$E$10,$E$7+List1!A21,\"\")","v":""},null,null,null,null,"","","","","","","",0,"","",null,"","",null,null,null,null,null,null,null,null,"jiná norma","arit.průměr"]
[null,null,null,null,null,null,null,null,null,null,{"$f":"IF(($E$7+List1!A22)<=$E$10,$E$7+List1!A22,\"\")","v":""},null,null,null,null,"","","","","","","",0,"","",null,"",""]
[null,null,null,null,null,null,null,null,null,null,{"$f":"IF(($E$7+List1!A23)<=$E$10,$E$7+List1!A23,\"\")","v":""},null,null,null,null,"","","","","","","",0,"","",null,"",""]
[null,null,null,null,null,null,null,null,null,null,{"$f":"IF(($E$7+List1!A24)<=$E$10,$E$7+List1!A24,\"\")","v":""},null,null,null,null,"","","","","","","",0,"","",null,"",""]
[null,"Podpis řešitele grantu nebo projektu",null,null,null,"Podpis vedoucího zahraničního oddělení",null,null,null,null,{"$f":"IF(($E$7+List1!A25)<=$E$10,$E$7+List1!A25,\"\")","v":""},null,null,null,null,"","","","","","","",0,"","",null,"",""]
[null,null,null,null,null,null,null,null,null,null,{"$f":"IF(($E$7+List1!A26)<=$E$10,$E$7+List1!A26,\"\")","v":""},null,null,null,null,"","","","","","","",0,"","",null,"",""]
[null,null,null,null,null,null,null,null,null,null,{"$f":"IF(($E$7+List1!A27)<=$E$10,$E$7+List1!A27,\"\")","v":""},null,null,null,null,"","","","","","","",0,"","",null,"",""]
[null,null,null,null,null,null,null,null,null,null,{"$f":"IF(($E$7+List1!A28)<=$E$10,$E$7+List1!A28,\"\")","v":""},null,null,null,null,"","","","","","","",0,"","",null,"",""]
[null,null,null,null,null,null,null,null,null,null,{"$f":"IF(($E$7+List1!A29)<=$E$10,$E$7+List1!A29,\"\")","v":""},null,null,null,null,"","","","","","","",0,"","",null,"",""]
[null,"Podpis přímého nadřízeného",null,null,null,"Podpis vedoucí ekonomického oddělení",null,null,null,null,{"$f":"IF(($E$7+List1!A30)<=$E$10,$E$7+List1!A30,\"\")","v":""},null,null,null,null,{"$f":"IF(K56<>\"\",IF(K57<>\"\",1,$S$10-K56),\"\")","v":""},{"$f":"IF(OR($E$8>K56,$E$9<K56),\"\",IF(K56=$E$8,$S$8,K56))","v":""},{"$f":"IF(OR($E$8>K56,$E$9<K56),\"\",IF(K56=$E$9,$S$9,K56+1))","v":""},{"$f":" IF(Q56=\"\",\"\",R56-Q56)","v":""},{"$f":"IF(P56<>\"\",IF(S56<>\"\",P56-S56,P56),\"\")","v":""},{"$f":"IF(T56<5/24,S56,IF(S56<=(5/24+0.0000001),\"\",S56))","v":""},{"$f":"IF(T56>=5/24,IF(S56<=(5/24+0.0000001),T56+S56,T56),T56)","v":""},{"$f":"IF($E$11=\"ne\",0,IF(LEFT(M56,1)=\"A\",1,0)+IF(LEFT(N56,1)=\"A\",1,0)+IF(LEFT(O56,1)=\"A\",1,0))","v":0},{"$f":"IF(U56<>\"\",(IF(U56<(1/24-0.0000001),1,(IF(U56<=12/24,2,IF(U56<=18/24,3,4))))),\"\")","v":""},{"$f":"IF(V56<>\"\",(IF(V56<5/24,1,(IF(V56<=12/24,2,IF(V56<=18/24,3,4))))),\"\")","v":""},null,{"$f":"IF(Y56<>\"\",IF(X56=\"\",VLOOKUP(W56,$AO$12:$AS$17,Y56+1,FALSE),VLOOKUP(0,$AO$12:$AS$17,Y56+1)),\"\")","v":""},{"$f":"IF(X56=\"\",\"\",IF(Y56=1,VLOOKUP(W56,$AO$26:$AS$30,X56+1,FALSE),VLOOKUP(W56,$AO$26:$AS$30,3,FALSE)))","v":""}]
[null,null,null,null,null,null,null,null,null,null,{"$f":"IF(($E$7+List1!A31)<=$E$10,$E$7+List1!A31,\"\")","v":""},null,null,null,null,"","","","","","","",0,"","",null,"",""]
[null,null,null,null,null,null,null,null,null,null,{"$f":"IF(($E$7+List1!A32)<=$E$10,$E$7+List1!A32,\"\")","v":""},null,null,null,null,"","","","","","","",0,"","",null,"",""]
[]
[null,"Podpis tajemníka\n (správce rozpočtu)",null,null,null,"Podpis pracovníka ekonomického oddělení, \nkterý kontroloval a upravil vyúčtování"]

{"sheet":"Zpráva o cestě","index":3,"n_rows":51,"n_cols":21,"rows_kept":51,"cut":false,"hidden":false,"merged":[[21,1,29,16],[32,1,46,16],[49,1,49,3],[50,1,50,3],[50,9,50,16],[20,1,20,5],[7,1,7,4],[9,1,9,4],[9,5,9,17],[11,5,11,17],[13,1,13,4],[15,1,15,3],[15,5,15,6],[7,5,7,6],[13,5,13,6],[17,10,17,16],[15,7,15,17],[17,1,17,5],[17,7,17,8],[1,20,5,28],[7,8,7,16],[13,8,13,17],[0,10,0,15],[1,1,1,17],[3,1,3,4],[3,5,3,17],[5,1,5,4],[5,5,5,17]]}
[null,null,null,null,null,null,null,null,null,null,"Příloha OD  č. 1/2022\n\n"]
[null,"ZPRÁVA O PRŮBĚHU A VÝSLEDCÍCH  PRACOVNÍ CESTY",null,null,null,null,null,null,null,null,null,null,null,null,null,null,null,null,null,null,{"$f":"IFERROR(\"Vyúčtování pracovní cesty a zprávu o pracovní cestě je nutné odevzdat nejpozději do \" &TEXT(List1!$AC$1,\"dd.mm.rrrr\")&\".\",\"\")","v":""}]
[]
[null,"Jméno a příjmení:",null,null,null,{"$f":"T(Příkaz!D5)","v":""}]
[]
[null,"Pracoviště:",null,null,null,{"$f":"T(Příkaz!L5)","v":""}]
[]
[null,"Datum a místo zahájení cesty:",null,null,null,{"$f":"T(Příkaz!F7)","v":""},null,null,{"$f":"T(Příkaz!J7)","v":""}]
[]
[null,"Místo konání:",null,null,null,{"$f":"T(Příkaz!D9)","v":""}]
[]
[null,"Účel:",null,null,null,{"$f":"T(Příkaz!D11)","v":""}]
[]
[null,"Datum a místo ukončení cesty:",null,null,null,{"$f":"T(Příkaz!F15)","v":""},null,null,{"$f":"T(Příkaz!J15)","v":""}]
[]
[null,"Počet dní:",null,null,null,{"$f":"List1!P2","v":1}]
[]
[null,"Způsob dopravy:",null,null,null,null,null,{"$f":"Příkaz!G20","v":"V"},null,null,{"$f":"Příkaz!I20","v":"Vlak"}]
[]
[]
[null,"Průběh cesty:"]
[]
[]
[]
[]
[]
[]
[]
[]
[]
[]
[null,"Výsledek pracovní cesty (přínos pracovní cesty):"]
[]
[]
[]
[]
[]
[]
[]
[]
[]
[]
[]
[]
[]
[]
[]
[]
[]
[]
[null,"V Praze dne",null,null,null,null,null,null,null,"Podpis zaměstnance"]

{"sheet":"Kurzy CNB","index":4,"n_rows":6,"n_cols":32,"rows_kept":6,"cut":false,"hidden":false,"merged":[]}
["Datum","1 AUD","1 BGN","1 BRL","1 CAD","1 CHF","1 CNY","1 DKK","1 EUR","1 GBP","1 HKD","100 HUF","1000 IDR","1 ILS","100 INR","100 ISK","100 JPY","100 KRW","1 MXN","1 MYR","1 NOK","1 NZD","100 PHP","1 PLN","1 RON","1 SEK","1 SGD","100 THB","1 TRY","1 USD","1 XDR","1 ZAR"]
["2023-01-02",15.4,12.385,4.2370000000000001,16.667999999999999,24.495999999999999,3.2810000000000001,3.25,24.175000000000001,27.271999999999998,2.899,6.0279999999999996,1.4530000000000001,6.4470000000000001,27.341000000000001,15.936,17.317,1.7809999999999999,1.1599999999999999,5.1369999999999996,2.2989999999999999,14.317,40.540999999999997,5.1639999999999997,4.8940000000000001,2.165,16.878,65.491,1.2090000000000001,22.63,30.117999999999999,1.33]
["2023-01-03",15.358000000000001,12.335000000000001,4.2590000000000003,16.738,24.422000000000001,3.3109999999999999,3.2440000000000002,24.125,27.401,2.9279999999999999,5.98,1.4670000000000001,6.4829999999999997,27.6,15.903,17.484999999999999,1.792,1.175,5.1920000000000002,2.2919999999999998,14.250999999999999,40.875999999999998,5.1520000000000001,4.8929999999999998,2.165,17.006,66.548000000000002,1.2210000000000001,22.878,30.446999999999999,1.339]
["2023-01-04",15.55,12.284000000000001,4.1609999999999996,16.728999999999999,24.408999999999999,3.2930000000000001,3.23,24.024999999999999,27.276,2.9,6.069,1.454,6.4260000000000002,27.372,15.837,17.315999999999999,1.7809999999999999,1.175,5.1520000000000001,2.2370000000000001,14.323,40.500999999999998,5.1470000000000002,4.8769999999999998,2.1520000000000001,16.907,66.658000000000001,1.21,22.672000000000001,30.148,1.347]
["2023-01-05",15.483000000000001,12.28,4.2089999999999996,16.795000000000002,24.4,3.3,3.2309999999999999,24.03,27.218,2.9039999999999999,6.0529999999999999,1.4530000000000001,6.4269999999999996,27.481000000000002,15.778,17.047000000000001,1.786,1.17,5.1680000000000001,2.2410000000000001,14.275,40.616999999999997,5.1459999999999999,4.88,2.1480000000000001,16.914000000000001,66.846000000000004,1.208,22.675999999999998,30.266999999999999,1.3260000000000001]
["2023-01-06",15.43,12.298999999999999,4.2939999999999996,16.786000000000001,24.387,3.34,3.2349999999999999,24.055,27.189,2.9329999999999998,6.0570000000000004,1.466,6.44,27.678999999999998,15.733000000000001,17.026,1.7989999999999999,1.1870000000000001,5.2030000000000003,2.226,14.241,41.204999999999998,5.1239999999999997,4.8789999999999996,2.137,16.992999999999999,67.322000000000003,1.2210000000000001,22.911000000000001,30.548999999999999,1.32]

{"sheet":"List1","index":5,"n_rows":569,"n_cols":31,"rows_kept":569,"cut":false,"hidden":true,"merged":[]}
[null,null,null,null,null,null,null,"2023-01-01","2023-01-01",null,null,null,null,null,null,"počet dní",null,null,null,null,null,null,null,null,null,null,null,{"$f":"Příkaz!F15","v":"00:00:00"},{"$f":"VLOOKUP(VLOOKUP(AB1,AB3:AD569,3,FALSE)+10,AA3:AB569,2,FALSE)","v":{"$error":"#N/A"}}]
[1,null,null,null,null,null,null,"2023-12-31","2024-06-30",null,"Ano","JE","PF UK","ZO PF UK",null,{"$f":"Příkaz!F15-Příkaz!F7+1","v":1},{"$f":"VALUE(RIGHT(P2,1))","v":1},{"$f":"P2&\" \"&VLOOKUP(Q2,P6:Q15,2,FALSE)","v":"1 den"},null,null,null,"Země","Měnový kód","Měna","Základní sazby zahraničního stravného",null,"poř","datum","body","č2","den"]
[2,"V","Vlak",null,null,null,null,null,null,null,"Ne","NENÍ","grant","jinak",null,null,null,"CZK","CZK",0,1,"Afghánistán","EUR","euro",45,null,0,"2023-01-01",0,null,{"$f":"WEEKDAY(AB3,2)","v":7}]
[3,"A","Autobus",null,null,null,null,null,"CZK",null,null,null,"jiné",null,null,null,null,"EUR","AUD",2,1,"Albánie","EUR","euro",40,null,{"$f":"AA3+AC4","v":1},"2023-01-02",1,{"$f":"AA3+AC4","v":1},{"$f":"WEEKDAY(AB4,2)","v":1}]
[4,"L","Letadlo",null,null,null,null,null,"EUR",null,"Ne",null,null,null,null,null,null,"GBP","BGN",3,1,"Alžírsko","EUR","euro",50,null,2,"2023-01-03",1,{"$f":"AA4+AC5","v":2},2]
[5,"SV","Služební silniční vozidlo",null,null,null,null,null,"USD",null,"Ano, v hotovosti",null,null,"ZO PF UK",null,0,"dní","PLN","BRL",4,1,"Andorra","EUR","euro",45,null,3,"2023-01-04",1,3,3]
[6,"SJ","Spolujízda",null,null,null,null,null,"GBP",null,"Ano, na bank. účet",null,null,"vyjíždějící",null,1,"den","USD","CAD",5,1,"Angola","USD","americký dolar",60,null,4,"2023-01-05",1,4,4]
[7,"VV","Vlastní silniční vozidlo - náhrada za každý km jízdy",null,null,null,null,null,"AUD",null,null,null,null,null,null,2,"dny",null,"CHF",6,1,"Argentina","USD","americký dolar",50,null,5,"2023-01-06",1,5,5]
[8,"V - VV","Vlastní vozidlo s náhradou výdajů za vlak",null,null,null,null,null,"BRL",null,null,null,null,null,null,3,"dny",null,"CNY",7,1,"Arménie","EUR","euro",40,null,5,"2023-01-07",0,5,6]
[9,"A - VV","Vlastní vozidlo s náhradou výdajů za autobus",null,null,null,null,null,"BGN",null,null,null,null,null,null,4,"dny",null,"DKK",8,1,"Austrálie a Oceánie – ostrovní státy1) ","USD","americký dolar",65,null,5,"2023-01-08",0,5,7]
[10,"L - VV","Vlastní vozidlo s náhradou výdajů za letadlo",null,null,null,null,null,"CNY",null,null,null,null,null,null,5,"dní",null,"EUR",9,1,"Ázerbájdžán","EUR","euro",40,null,6,"2023-01-09",1,6,1]
[11,null,null,null,null,null,null,null,"DKK",null,null,null,null,null,null,6,"dní",null,"GBP",10,1,"Bahamy","USD","americký dolar",60,null,7,"2023-01-10",1,7,2]
[12,"S",null,null,null,null,null,null,"PHP",null,null,null,null,null,null,7,"dní",null,"HKD",11,1,"Bahrajn","EUR","euro",45,null,8,"2023-01-11",1,8,3]
[13,"O",null,null,null,null,null,null,"HKD",null,null,null,null,null,null,8,"dní",null,"HUF",12,100,"Bangladéš","USD","americký dolar",50,null,9,"2023-01-12",1,9,4]
[14,"V",null,null,null,null,null,null,"HRK",null,null,null,null,null,null,9,"dní",null,"IDR",13,1000,"Belgie","EUR","euro",50,null,10,"2023-01-13",1,10,5]
[15,"SO",null,null,null,null,null,null,"INR",null,null,null,null,null,null,null,null,null,"ILS",14,1,"Belize","USD","americký dolar",50,null,10,"2023-01-14",0,10,6]
[16,"SV",null,null,null,null,null,null,"IDR",null,null,null,null,null,null,null,null,null,"INR",15,100,"Benin","EUR","euro",45,null,10,"2023-01-15",0,10,7]
[17,"OV",null,null,null,null,null,null,"ISK",null,null,null,null,null,null,null,null,null,"ISK",16,100,"Bermudy","USD","americký dolar",50,null,11,"2023-01-16",1,11,1]
[18,"SOV",null,null,null,null,null,null,"ILS",null,null,null,null,null,null,null,null,null,"JPY",17,100,"Bělorusko","EUR","euro",45,null,12,"2023-01-17",1,12,2]
[19,null,null,null,null,null,null,null,"JPY",null,null,null,null,null,null,null,null,null,"KRW",18,100,"Bhútán","USD","americký dolar",50,null,13,"2023-01-18",1,13,3]
[20,null,null,null,null,null,null,null,"ZAR",null,null,null,null,null,null,null,null,null,"MXN",19,1,"Bolívie","USD","americký dolar",50,null,14,"2023-01-19",1,14,4]
[21,110,"Z",1,null,null,null,null,"CAD",null,null,null,null,null,null,null,null,null,"MYR",20,1,"Bosna a Hercegovina","EUR","euro",40,null,15,"2023-01-20",1,15,5]
[22,1010,"P",2,null,null,null,null,"KRW",null,null,null,null,null,null,null,null,null,"NOK",21,1,"Botswana","USD","americký dolar",55,null,15,"2023-01-21",0,15,6]
[23,1001,"K",3,null,null,null,null,"HUF",null,null,null,null,null,null,null,null,null,"NZD",22,1,"Brazílie","USD","americký dolar",60,null,15,"2023-01-22",0,15,7]
[24,101,"S",4,null,null,null,null,"MYR",null,null,null,null,null,null,null,null,null,"PHP",23,100,"Brunej","USD","americký dolar",40,null,16,"2023-01-23",1,16,1]
[25,0,0,5,null,null,null,null,"MXN",null,null,null,null,null,null,null,null,null,"PLN",24,1,"Bulharsko","EUR","euro",40,null,17,"2023-01-24",1,17,2]
[26,null,null,null,null,null,null,null,"XDR",null,null,null,null,null,null,null,null,null,"RON",25,1,"Burkina Faso ","EUR","euro",40,null,18,"2023-01-25",1,18,3]
[27,null,null,null,null,null,null,null,"NOK",null,null,null,null,null,null,null,null,null,"SEK",26,1,"Burundi","USD","americký dolar",55,null,19,"2023-01-26",1,19,4]
[28,null,null,null,null,null,null,null,"NZD",null,null,null,null,null,null,null,null,null,"SGD",27,1,"Čad","EUR","euro",50,null,20,"2023-01-27",1,20,5]
[29,null,null,null,null,null,null,null,"PLN",null,null,null,null,null,null,null,null,null,"THB",28,100,"Černá Hora","EUR","euro",35,null,20,"2023-01-28",0,20,6]
[30,null,null,null,null,null,null,null,"RON",null,null,null,null,null,null,null,null,null,"TRY",29,1,"Čína","EUR","euro",45,null,20,"2023-01-29",0,20,7]
[31,null,null,null,null,null,null,null,"RUB",null,null,null,null,null,null,null,null,null,"USD",30,1,"Dánsko","EUR","euro",60,null,21,"2023-01-30",1,21,1]
[32,null,null,null,null,null,null,null,"SGD",null,null,null,null,null,null,null,null,null,"XDR",31,1,"Džibutsko","USD","americký dolar",65,null,22,"2023-01-31",1,22,2]
[33,null,null,null,null,null,null,null,"SEK",null,null,null,null,null,null,null,null,null,"ZAR",32,1,"Egypt","EUR","euro",45,null,23,"2023-02-01",1,23,3]
[34,null,null,null,null,null,null,null,"CHF",null,null,null,null,null,null,null,null,null,null,null,null,"Ekvádor","USD","americký dolar",50,null,24,"2023-02-02",1,24,4]
[35,null,null,null,null,null,null,null,"THB",null,null,null,null,null,null,null,null,null,null,null,null,"Eritrea","USD","americký dolar",50,null,25,"2023-02-03",1,25,5]
[36,null,null,null,null,null,null,null,"TRY",null,null,null,null,null,null,null,null,null,null,{"$f":"RIGHT(S37,3)","v":""},null,"Estonsko","EUR","euro",40,null,25,"2023-02-04",0,25,6]
[37,null,null,null,null,null,null,null,null,null,null,null,null,null,null,null,null,null,null,"",null,"Etiopie","EUR","euro",50,null,25,"2023-02-05",0,25,7]
[38,null,null,null,null,null,null,null,null,null,null,null,null,null,null,null,null,null,null,"",null,"Filipíny","EUR","euro",40,null,26,"2023-02-06",1,26,1]
[39,null,null,null,null,null,null,null,null,null,null,null,null,null,null,null,null,null,null,"",null,"Finsko","EUR","euro",55,null,27,"2023-02-07",1,27,2]
[40,null,null,null,null,null,null,null,null,null,null,null,null,null,null,null,null,null,null,"",null,"Francie","EUR","euro",50,null,28,"2023-02-08",1,28,3]
[41,null,null,null,null,null,null,null,null,null,null,null,null,null,null,null,null,null,null,"",null,"Francouzská Guyana","EUR","euro",45,null,29,"2023-02-09",1,29,4]
[42,null,null,null,null,null,null,null,null,null,null,null,null,null,null,null,null,null,null,"",null,"Gabon","EUR","euro",50,null,30,"2023-02-10",1,30,5]
[43,null,null,null,null,null,null,null,null,null,null,null,null,null,null,null,null,null,null,"",null,"Gambie","EUR","euro",45,null,30,"2023-02-11",0,30,6]
[44,null,null,null,null,null,null,null,null,null,null,null,null,null,null,null,null,null,null,"",null,"Ghana","EUR","euro",50,null,30,"2023-02-12",0,30,7]
[45,null,null,null,null,null,null,null,null,null,null,null,null,null,null,null,null,null,null,"",null,"Gibraltar","EUR","euro",40,null,31,"2023-02-13",1,31,1]
[46,null,null,null,null,null,null,null,null,null,null,null,null,null,null,null,null,null,null,"",null,"Gruzie","EUR","euro",40,null,32,"2023-02-14",1,32,2]
[47,null,null,null,null,null,null,null,null,null,null,null,null,null,null,null,null,null,null,"",null,"Guatemala","USD","americký dolar",45,null,33,"2023-02-15",1,33,3]
[48,null,null,null,null,null,null,null,null,null,null,null,null,null,null,null,null,null,null,"",null,"Guinea","EUR","euro",50,null,34,"2023-02-16",1,34,4]
[49,null,null,null,null,null,null,null,null,null,null,null,null,null,null,null,null,null,null,"",null,"Guinea-Bissau","EUR","euro",45,null,35,"2023-02-17",1,35,5]
[50,null,null,null,null,null,null,null,null,null,null,null,null,null,null,null,null,null,null,"",null,"Guyana","USD","americký dolar",50,null,35,"2023-02-18",0,35,6]
[51,null,null,null,null,null,null,null,null,null,null,null,null,null,null,null,null,null,null,"",null,"Honduras","USD","americký dolar",45,null,35,"2023-02-19",0,35,7]
[52,null,null,null,null,null,null,null,null,null,null,null,null,null,null,null,null,null,null,"",null,"Hongkong ","EUR","euro",45,null,36,"2023-02-20",1,36,1]
[53,null,null,null,null,null,null,null,null,null,null,null,null,null,null,null,null,null,null,"",null,"Chile","USD","americký dolar",55,null,37,"2023-02-21",1,37,2]
[54,null,null,null,null,null,null,null,null,null,null,null,null,null,null,null,null,null,null,"",null,"Chorvatsko","EUR","euro",40,null,38,"2023-02-22",1,38,3]
[55,null,null,null,null,null,null,null,null,null,null,null,null,null,null,null,null,null,null,"",null,"Indie","EUR","euro",45,null,39,"2023-02-23",1,39,4]
[56,null,null,null,null,null,null,null,null,null,null,null,null,null,null,null,null,null,null,"",null,"Indonésie","EUR","euro",40,null,40,"2023-02-24",1,40,5]
[57,null,null,null,null,null,null,null,null,null,null,null,null,null,null,null,null,null,null,"",null,"Irák","EUR","euro",45,null,40,"2023-02-25",0,40,6]
[58,null,null,null,null,null,null,null,null,null,null,null,null,null,null,null,null,null,null,"",null,"Írán","EUR","euro",40,null,40,"2023-02-26",0,40,7]
[59,null,null,null,null,null,null,null,null,null,null,null,null,null,null,null,null,null,null,"",null,"Irsko","EUR","euro",50,null,41,"2023-02-27",1,41,1]
[60,null,null,null,null,null,null,null,null,null,null,null,null,null,null,null,null,null,null,"",null,"Island","EUR","euro",60,null,42,"2023-02-28",1,42,2]
[61,null,null,null,null,null,null,null,null,null,null,null,null,null,null,null,null,null,null,"",null,"Itálie, Vatikán a San Marino","EUR","euro",50,null,43,"2023-03-01",1,43,3]
[null,null,null,null,null,null,null,null,null,null,null,null,null,null,null,null,null,null,null,"",null,"Izrael","USD","americký dolar",60,null,44,"2023-03-02",1,44,4]
[null,null,null,null,null,null,null,null,null,null,null,null,null,null,null,null,null,null,null,"",null,"Japonsko","USD","americký dolar",65,null,45,"2023-03-03",1,45,5]
[null,null,null,null,null,null,null,null,null,null,null,null,null,null,null,null,null,null,null,"",null,"Jemen","EUR","euro",35,null,45,"2023-03-04",0,45,6]
[null,null,null,null,null,null,null,null,null,null,null,null,null,null,null,null,null,null,null,"",null,"Jihoafrická republika","EUR","euro",40,null,45,"2023-03-05",0,45,7]
[null,null,null,null,null,null,null,null,null,null,null,null,null,null,null,null,null,null,null,"",null,"Jižní Súdán","USD","americký dolar",55,null,46,"2023-03-06",1,46,1]
[null,null,null,null,null,null,null,null,null,null,null,null,null,null,null,null,null,null,null,"",null,"Jordánsko","EUR","euro",50,null,{"$f":"AA67+AC68","v":47},"2023-03-07",1,47,{"$f":"WEEKDAY(AB68,2)","v":2}]
[null,null,null,null,null,null,null,null,null,null,null,null,null,null,null,null,null,null,null,{"$f":"RIGHT(S69,3)","v":""},null,"Kambodža","USD","americký dolar",45,null,48,"2023-03-08",1,{"$f":"AA68+AC69","v":48},3]
[null,null,null,null,null,null,null,null,null,null,null,null,null,null,null,null,null,null,null,"",null,"Kamerun","EUR","euro",50,null,49,"2023-03-09",1,49,4]
[null,null,null,null,null,null,null,null,null,null,null,null,null,null,null,null,null,null,null,"",null,"Kanada","USD","americký dolar",50,null,50,"2023-03-10",1,50,5]
[null,null,null,null,null,null,null,null,null,null,null,null,null,null,null,null,null,null,null,"",null,"Kapverdy","EUR","euro",40,null,50,"2023-03-11",0,50,6]
[null,null,null,null,null,null,null,null,null,null,null,null,null,null,null,null,null,null,null,"",null,"Karibik – ostrovní státy2) ","USD","americký dolar",60,null,50,"2023-03-12",0,50,7]
[null,null,null,null,null,null,null,null,null,null,null,null,null,null,null,null,null,null,null,"",null,"Katar","USD","americký dolar",50,null,51,"2023-03-13",1,51,1]
[null,null,null,null,null,null,null,null,null,null,null,null,null,null,null,null,null,null,null,"",null,"Kazachstán","EUR","euro",45,null,52,"2023-03-14",1,52,2]
[null,null,null,null,null,null,null,null,null,null,null,null,null,null,null,null,null,null,null,"",null,"Keňa","EUR","euro",45,null,53,"2023-03-15",1,53,3]
[null,null,null,null,null,null,null,null,null,null,null,null,null,null,null,null,null,null,null,"",null,"Kolumbie","USD","americký dolar",45,null,54,"2023-03-16",1,54,4]
[null,null,null,null,null,null,null,null,null,null,null,null,null,null,null,null,null,null,null,"",null,"Komory","USD","americký dolar",55,null,55,"2023-03-17",1,55,5]
[null,null,null,null,null,null,null,null,null,null,null,null,null,null,null,null,null,null,null,"",null,"Konžská republika  (Brazzaville)","USD","americký dolar",60,null,55,"2023-03-18",0,55,6]
[null,null,null,null,null,null,null,null,null,null,null,null,null,null,null,null,null,null,null,"",null,"Konžská demokratická republika (Kinshasa)","USD","americký dolar",65,null,55,"2023-03-19",0,55,7]
[null,null,null,null,null,null,null,null,null,null,null,null,null,null,null,null,null,null,null,"",null,"Korejská lidově demokratická republika","EUR","euro",45,null,56,"2023-03-20",1,56,1]
[null,null,null,null,null,null,null,null,null,null,null,null,null,null,null,null,null,null,null,"",null,"Korejská republika","EUR","euro",55,null,57,"2023-03-21",1,57,2]
[null,null,null,null,null,null,null,null,null,null,null,null,null,null,null,null,null,null,null,"",null,"Kosovo","EUR","euro",45,null,58,"2023-03-22",1,58,3]
[null,null,null,null,null,null,null,null,null,null,null,null,null,null,null,null,null,null,null,"",null,"Kostarika","USD","americký dolar",50,null,59,"2023-03-23",1,59,4]
[null,null,null,null,null,null,null,null,null,null,null,null,null,null,null,null,null,null,null,"",null,"Kuba","EUR","euro",60,null,60,"2023-03-24",1,60,5]
[null,null,null,null,null,null,null,null,null,null,null,null,null,null,null,null,null,null,null,"",null,"Kuvajt","EUR","euro",40,null,60,"2023-03-25",0,60,6]
[null,null,null,null,null,null,null,null,null,null,null,null,null,null,null,null,null,null,null,"",null,"Kypr","EUR","euro",40,null,60,"2023-03-26",0,60,7]
[null,null,null,null,null,null,null,null,null,null,null,null,null,null,null,null,null,null,null,"",null,"Kyrgyzstán","EUR","euro",40,null,61,"2023-03-27",1,61,1]
[null,null,null,null,null,null,null,null,null,null,null,null,null,null,null,null,null,null,null,"",null,"Laos","USD","americký dolar",45,null,62,"2023-03-28",1,62,2]
[null,null,null,null,null,null,null,null,null,null,null,null,null,null,null,null,null,null,null,"",null,"Lesotho","USD","americký dolar",50,null,63,"2023-03-29",1,63,3]
[null,null,null,null,null,null,null,null,null,null,null,null,null,null,null,null,null,null,null,"",null,"Libanon","USD","americký dolar",55,null,64,"2023-03-30",1,64,4]
[null,null,null,null,null,null,null,null,null,null,null,null,null,null,null,null,null,null,null,"",null,"Libérie","EUR","euro",45,null,65,"2023-03-31",1,65,5]
[null,null,null,null,null,null,null,null,null,null,null,null,null,null,null,null,null,null,null,"",null,"Libye","EUR","euro",45,null,65,"2023-04-01",0,65,6]
[null,null,null,null,null,null,null,null,null,null,null,null,null,null,null,null,null,null,null,"",null,"Lichtenštejnsko","CHF","švýcarský frank",65,null,65,"2023-04-02",0,65,7]
[null,null,null,null,null,null,null,null,null,null,null,null,null,null,null,null,null,null,null,"",null,"Litva","EUR","euro",40,null,66,"2023-04-03",1,66,1]
[null,null,null,null,null,null,null,null,null,null,null,null,null,null,null,null,null,null,null,"",null,"Lotyšsko","EUR","euro",40,null,67,"2023-04-04",1,67,2]
[null,null,null,null,null,null,null,null,null,null,null,null,null,null,null,null,null,null,null,"",null,"Lucembursko","EUR","euro",50,null,68,"2023-04-05",1,68,3]
[null,null,null,null,null,null,null,null,null,null,null,null,null,null,null,null,null,null,null,"",null,"Macao ","EUR","euro",45,null,69,"2023-04-06",1,69,4]
[null,null,null,null,null,null,null,null,null,null,null,null,null,null,null,null,null,null,null,"",null,"Madagaskar","EUR","euro",40,null,69,"2023-04-07",0,69,5]
[null,null,null,null,null,null,null,null,null,null,null,null,null,null,null,null,null,null,null,"",null,"Maďarsko","EUR","euro",40,null,69,"2023-04-08",0,69,6]
[null,null,null,null,null,null,null,null,null,null,null,null,null,null,null,null,null,null,null,"",null,"Malajsie","USD","americký dolar",45,null,69,"2023-04-09",0,69,7]
[null,null,null,null,null,null,null,null,null,null,null,null,null,null,null,null,null,null,null,"",null,"Malawi","USD","americký dolar",45,null,69,"2023-04-10",0,69,1]
[null,null,null,null,null,null,null,null,null,null,null,null,null,null,null,null,null,null,null,"",null,"Maledivy","USD","americký dolar",55,null,70,"2023-04-11",1,70,2]
[null,null,null,null,null,null,null,null,null,null,null,null,null,null,null,null,null,null,null,"",null,"Mali","EUR","euro",50,null,71,"2023-04-12",1,71,3]
[null,null,null,null,null,null,null,null,null,null,null,null,null,null,null,null,null,null,null,"",null,"Malta","EUR","euro",50,null,72,"2023-04-13",1,72,4]
[null,null,null,null,null,null,null,null,null,null,null,null,null,null,null,null,null,null,null,"",null,"Maroko","EUR","euro",45,null,73,"2023-04-14",1,73,5]
[null,null,null,null,null,null,null,null,null,null,null,null,null,null,null,null,null,null,null,"",null,"Mauretánie","EUR","euro",40,null,73,"2023-04-15",0,73,6]
[null,null,null,null,null,null,null,null,null,null,null,null,null,null,null,null,null,null,null,"",null,"Mauricius","USD","americký dolar",55,null,73,"2023-04-16",0,73,7]
[null,null,null,null,null,null,null,null,null,null,null,null,null,null,null,null,null,null,null,"",null,"Mexiko","USD","americký dolar",50,null,74,"2023-04-17",1,74,1]
[null,null,null,null,null,null,null,null,null,null,null,null,null,null,null,null,null,null,null,"",null,"Moldavsko","EUR","euro",45,null,75,"2023-04-18",1,75,2]
[null,null,null,null,null,null,null,null,null,null,null,null,null,null,null,null,null,null,null,"",null,"Monako","EUR","euro",45,null,76,"2023-04-19",1,76,3]
[null,null,null,null,null,null,null,null,null,null,null,null,null,null,null,null,null,null,null,"",null,"Mongolsko","EUR","euro",40,null,77,"2023-04-20",1,77,4]
[null,null,null,null,null,null,null,null,null,null,null,null,null,null,null,null,null,null,null,"",null,"Mosambik","USD","americký dolar",50,null,78,"2023-04-21",1,78,5]
[null,null,null,null,null,null,null,null,null,null,null,null,null,null,null,null,null,null,null,"",null,"Myanmar (Barma)","USD","americký dolar",55,null,78,"2023-04-22",0,78,6]
[null,null,null,null,null,null,null,null,null,null,null,null,null,null,null,null,null,null,null,"",null,"Namibie","USD","americký dolar",50,null,78,"2023-04-23",0,78,7]
[null,null,null,null,null,null,null,null,null,null,null,null,null,null,null,null,null,null,null,"",null,"Německo","EUR","euro",45,null,79,"2023-04-24",1,79,1]
[null,null,null,null,null,null,null,null,null,null,null,null,null,null,null,null,null,null,null,"",null,"Nepál","USD","americký dolar",50,null,80,"2023-04-25",1,80,2]
[null,null,null,null,null,null,null,null,null,null,null,null,null,null,null,null,null,null,null,"",null,"Niger ","EUR","euro",50,null,81,"2023-04-26",1,81,3]
[null,null,null,null,null,null,null,null,null,null,null,null,null,null,null,null,null,null,null,"",null,"Nigérie","EUR","euro",50,null,82,"2023-04-27",1,82,4]
[null,null,null,null,null,null,null,null,null,null,null,null,null,null,null,null,null,null,null,"",null,"Nikaragua","USD","americký dolar",45,null,83,"2023-04-28",1,83,5]
[null,null,null,null,null,null,null,null,null,null,null,null,null,null,null,null,null,null,null,"",null,"Nizozemsko","EUR","euro",50,null,83,"2023-04-29",0,83,6]
[null,null,null,null,null,null,null,null,null,null,null,null,null,null,null,null,null,null,null,"",null,"Norsko","EUR","euro",60,null,83,"2023-04-30",0,83,7]
[null,null,null,null,null,null,null,null,null,null,null,null,null,null,null,null,null,null,null,"",null,"Nový Zéland","USD","americký dolar",65,null,83,"2023-05-01",0,83,1]
[null,null,null,null,null,null,null,null,null,null,null,null,null,null,null,null,null,null,null,"",null,"Omán","EUR","euro",50,null,84,"2023-05-02",1,84,2]
[null,null,null,null,null,null,null,null,null,null,null,null,null,null,null,null,null,null,null,"",null,"Pákistán","EUR","euro",40,null,85,"2023-05-03",1,85,3]
[null,null,null,null,null,null,null,null,null,null,null,null,null,null,null,null,null,null,null,"",null,"Panama","USD","americký dolar",45,null,86,"2023-05-04",1,86,4]
[null,null,null,null,null,null,null,null,null,null,null,null,null,null,null,null,null,null,null,"",null,"Paraguay","USD","americký dolar",50,null,87,"2023-05-05",1,87,5]
[null,null,null,null,null,null,null,null,null,null,null,null,null,null,null,null,null,null,null,"",null,"Peru","USD","americký dolar",50,null,87,"2023-05-06",0,87,6]
[null,null,null,null,null,null,null,null,null,null,null,null,null,null,null,null,null,null,null,"",null,"Pobřeží Slonoviny","EUR","euro",40,null,87,"2023-05-07",0,87,7]
[null,null,null,null,null,null,null,null,null,null,null,null,null,null,null,null,null,null,null,"",null,"Polsko","EUR","euro",45,null,87,"2023-05-08",0,87,1]
[null,null,null,null,null,null,null,null,null,null,null,null,null,null,null,null,null,null,null,"",null,"Portugalsko a Azory","EUR","euro",40,null,88,"2023-05-09",1,88,2]
[null,null,null,null,null,null,null,null,null,null,null,null,null,null,null,null,null,null,null,"",null,"Rakousko","EUR","euro",45,null,{"$f":"AA131+AC132","v":89},"2023-05-10",1,89,{"$f":"WEEKDAY(AB132,2)","v":3}]
[null,null,null,null,null,null,null,null,null,null,null,null,null,null,null,null,null,null,null,{"$f":"RIGHT(S133,3)","v":""},null,"Rovníková Guinea","EUR","euro",50,null,90,"2023-05-11",1,{"$f":"AA132+AC133","v":90},4]
[null,null,null,null,null,null,null,null,null,null,null,null,null,null,null,null,null,null,null,"",null,"Rumunsko","EUR","euro",40,null,91,"2023-05-12",1,91,5]
[null,null,null,null,null,null,null,null,null,null,null,null,null,null,null,null,null,null,null,"",null,"Rusko","EUR","euro",45,null,91,"2023-05-13",0,91,6]
[null,null,null,null,null,null,null,null,null,null,null,null,null,null,null,null,null,null,null,"",null,"Rwanda","USD","americký dolar",55,null,91,"2023-05-14",0,91,7]
[null,null,null,null,null,null,null,null,null,null,null,null,null,null,null,null,null,null,null,"",null,"Řecko","EUR","euro",40,null,92,"2023-05-15",1,92,1]
[null,null,null,null,null,null,null,null,null,null,null,null,null,null,null,null,null,null,null,"",null,"Salvador","USD","americký dolar",45,null,93,"2023-05-16",1,93,2]
[null,null,null,null,null,null,null,null,null,null,null,null,null,null,null,null,null,null,null,"",null,"Saúdská Arábie","EUR","euro",50,null,94,"2023-05-17",1,94,3]
[null,null,null,null,null,null,null,null,null,null,null,null,null,null,null,null,null,null,null,"",null,"Senegal","EUR","euro",55,null,95,"2023-05-18",1,95,4]
[null,null,null,null,null,null,null,null,null,null,null,null,null,null,null,null,null,null,null,"",null,"Severní Makedonie","EUR","euro",35,null,96,"2023-05-19",1,96,5]
[null,null,null,null,null,null,null,null,null,null,null,null,null,null,null,null,null,null,null,"",null,"Seychely","EUR","euro",55,null,96,"2023-05-20",0,96,6]
[null,null,null,null,null,null,null,null,null,null,null,null,null,null,null,null,null,null,null,"",null,"Sierra Leone","EUR","euro",40,null,96,"2023-05-21",0,96,7]
[null,null,null,null,null,null,null,null,null,null,null,null,null,null,null,null,null,null,null,"",null,"Singapur","USD","americký dolar",60,null,97,"2023-05-22",1,97,1]
[null,null,null,null,null,null,null,null,null,null,null,null,null,null,null,null,null,null,null,"",null,"Spojené arabské emiráty","USD","americký dolar",55,null,98,"2023-05-23",1,98,2]
[null,null,null,null,null,null,null,null,null,null,null,null,null,null,null,null,null,null,null,"",null,"Slovensko","EUR","euro",35,null,99,"2023-05-24",1,99,3]
[null,null,null,null,null,null,null,null,null,null,null,null,null,null,null,null,null,null,null,"",null,"Slovinsko","EUR","euro",40,null,100,"2023-05-25",1,100,4]
[null,null,null,null,null,null,null,null,null,null,null,null,null,null,null,null,null,null,null,"",null,"Somálsko","USD","americký dolar",55,null,101,"2023-05-26",1,101,5]
[null,null,null,null,null,null,null,null,null,null,null,null,null,null,null,null,null,null,null,"",null,"Spojené státy americké","USD","americký dolar",60,null,101,"2023-05-27",0,101,6]
[null,null,null,null,null,null,null,null,null,null,null,null,null,null,null,null,null,null,null,"",null,"Srbsko ","EUR","euro",35,null,101,"2023-05-28",0,101,7]
[null,null,null,null,null,null,null,null,null,null,null,null,null,null,null,null,null,null,null,"",null,"Srí Lanka","USD","americký dolar",50,null,102,"2023-05-29",1,102,1]
[null,null,null,null,null,null,null,null,null,null,null,null,null,null,null,null,null,null,null,"",null,"Středoafrická republika","USD","americký dolar",50,null,103,"2023-05-30",1,103,2]
[null,null,null,null,null,null,null,null,null,null,null,null,null,null,null,null,null,null,null,"",null,"Súdán","USD","americký dolar",55,null,104,"2023-05-31",1,104,3]
[null,null,null,null,null,null,null,null,null,null,null,null,null,null,null,null,null,null,null,"",null,"Surinam","USD","americký dolar",50,null,105,"2023-06-01",1,105,4]
[null,null,null,null,null,null,null,null,null,null,null,null,null,null,null,null,null,null,null,"",null,"Svatý Tomáš a Princův ostrov","EUR","euro",40,null,106,"2023-06-02",1,106,5]
[null,null,null,null,null,null,null,null,null,null,null,null,null,null,null,null,null,null,null,"",null,"Svazijsko ","USD","americký dolar",55,null,106,"2023-06-03",0,106,6]
[null,null,null,null,null,null,null,null,null,null,null,null,null,null,null,null,null,null,null,"",null,"Sýrie","EUR","euro",50,null,106,"2023-06-04",0,106,7]
[null,null,null,null,null,null,null,null,null,null,null,null,null,null,null,null,null,null,null,"",null,"Španělsko","EUR","euro",45,null,107,"2023-06-05",1,107,1]
[null,null,null,null,null,null,null,null,null,null,null,null,null,null,null,null,null,null,null,"",null,"Švédsko","EUR","euro",60,null,108,"2023-06-06",1,108,2]
[null,null,null,null,null,null,null,null,null,null,null,null,null,null,null,null,null,null,null,"",null,"Švýcarsko","CHF","švýcarský frank",75,null,109,"2023-06-07",1,109,3]
[null,null,null,null,null,null,null,null,null,null,null,null,null,null,null,null,null,null,null,"",null,"Tádžikistán","EUR","euro",40,null,110,"2023-06-08",1,110,4]
[null,null,null,null,null,null,null,null,null,null,null,null,null,null,null,null,null,null,null,"",null,"Tanzanie","USD","americký dolar",55,null,111,"2023-06-09",1,111,5]
[null,null,null,null,null,null,null,null,null,null,null,null,null,null,null,null,null,null,null,"",null,"Thajsko","EUR","euro",40,null,111,"2023-06-10",0,111,6]
[null,null,null,null,null,null,null,null,null,null,null,null,null,null,null,null,null,null,null,"",null,"Tchaj-wan","EUR","euro",45,null,111,"2023-06-11",0,111,7]
[null,null,null,null,null,null,null,null,null,null,null,null,null,null,null,null,null,null,null,"",null,"Togo ","EUR","euro",40,null,112,"2023-06-12",1,112,1]
[null,null,null,null,null,null,null,null,null,null,null,null,null,null,null,null,null,null,null,"",null,"Tunisko","EUR","euro",50,null,113,"2023-06-13",1,113,2]
[null,null,null,null,null,null,null,null,null,null,null,null,null,null,null,null,null,null,null,"",null,"Turecko","EUR","euro",40,null,114,"2023-06-14",1,114,3]
[null,null,null,null,null,null,null,null,null,null,null,null,null,null,null,null,null,null,null,"",null,"Turkmenistán","EUR","euro",45,null,115,"2023-06-15",1,115,4]
[null,null,null,null,null,null,null,null,null,null,null,null,null,null,null,null,null,null,null,"",null,"Uganda","USD","americký dolar",55,null,116,"2023-06-16",1,116,5]
[null,null,null,null,null,null,null,null,null,null,null,null,null,null,null,null,null,null,null,"",null,"Ukrajina","EUR","euro",45,null,116,"2023-06-17",0,116,6]
[null,null,null,null,null,null,null,null,null,null,null,null,null,null,null,null,null,null,null,"",null,"Uruguay","USD","americký dolar",55,null,116,"2023-06-18",0,116,7]
[null,null,null,null,null,null,null,null,null,null,null,null,null,null,null,null,null,null,null,"",null,"Uzbekistán","EUR","euro",40,null,117,"2023-06-19",1,117,1]
[null,null,null,null,null,null,null,null,null,null,null,null,null,null,null,null,null,null,null,"",null,"Velká Británie","GBP","anglická libra",45,null,118,"2023-06-20",1,118,2]
[null,null,null,null,null,null,null,null,null,null,null,null,null,null,null,null,null,null,null,"",null,"Venezuela","USD","americký dolar",65,null,119,"2023-06-21",1,119,3]
[null,null,null,null,null,null,null,null,null,null,null,null,null,null,null,null,null,null,null,"",null,"Vietnam","EUR","euro",40,null,120,"2023-06-22",1,120,4]
[null,null,null,null,null,null,null,null,null,null,null,null,null,null,null,null,null,null,null,"",null,"Zambie","USD","americký dolar",55,null,121,"2023-06-23",1,121,5]
[null,null,null,null,null,null,null,null,null,null,null,null,null,null,null,null,null,null,null,"",null,"Zimbabwe","USD","americký dolar",50,null,121,"2023-06-24",0,121,6]
[null,null,null,null,null,null,null,null,null,null,null,null,null,null,null,null,null,null,null,"",null,"Ostatní země neuvedené v příloze","EUR","euro",35,null,121,"2023-06-25",0,121,7]
[null,null,null,null,null,null,null,null,null,null,null,null,null,null,null,null,null,null,null,"",null,null,null,null,null,null,122,"2023-06-26",1,122,1]
[null,null,null,null,null,null,null,null,null,null,null,null,null,null,null,null,null,null,null,"",null,null,null,null,null,null,123,"2023-06-27",1,123,2]
[null,null,null,null,null,null,null,null,null,null,null,null,null,null,null,null,null,null,null,null,null,null,null,null,null,null,124,"2023-06-28",1,124,3]
[null,null,null,null,null,null,null,null,null,null,null,null,null,null,null,null,null,null,null,null,null,null,null,null,null,null,125,"2023-06-29",1,125,4]
[null,null,null,null,null,null,null,null,null,null,null,null,null,null,null,null,null,null,null,null,null,null,null,null,null,null,126,"2023-06-30",1,126,5]
[null,null,null,null,null,null,null,null,null,null,null,null,null,null,null,null,null,null,null,null,null,null,null,null,null,null,126,"2023-07-01",0,126,6]
[null,null,null,null,null,null,null,null,null,null,null,null,null,null,null,null,null,null,null,null,null,null,null,null,null,null,126,"2023-07-02",0,126,7]
[null,null,null,null,null,null,null,null,null,null,null,null,null,null,null,null,null,null,null,null,null,null,null,null,null,null,127,"2023-07-03",1,127,1]
[null,null,null,null,null,null,null,null,null,null,null,null,null,null,null,null,null,null,null,null,null,null,null,null,null,null,128,"2023-07-04",1,128,2]
[null,null,null,null,null,null,null,null,null,null,null,null,null,null,null,null,null,null,null,null,null,null,null,null,null,null,128,"2023-07-05",0,128,3]
[null,null,null,null,null,null,null,null,null,null,null,null,null,null,null,null,null,null,null,null,null,null,null,null,null,null,128,"2023-07-06",0,128,4]
[null,null,null,null,null,null,null,null,null,null,null,null,null,null,null,null,null,null,null,null,null,null,null,null,null,null,129,"2023-07-07",1,129,5]
[null,null,null,null,null,null,null,null,null,null,null,null,null,null,null,null,null,null,null,null,null,null,null,null,null,null,129,"2023-07-08",0,129,6]
[null,null,null,null,null,null,null,null,null,null,null,null,null,null,null,null,null,null,null,null,null,null,null,null,null,null,129,"2023-07-09",0,129,7]
[null,null,null,null,null,null,null,null,null,null,null,null,null,null,null,null,null,null,null,null,null,null,null,null,null,null,130,"2023-07-10",1,130,1]
[null,null,null,null,null,null,null,null,null,null,null,null,null,null,null,null,null,null,null,null,null,null,null,null,null,null,131,"2023-07-11",1,131,2]
[null,null,null,null,null,null,null,null,null,null,null,null,null,null,null,null,null,null,null,null,null,null,null,null,null,null,132,"2023-07-12",1,132,3]
[null,null,null,null,null,null,null,null,null,null,null,null,null,null,null,null,null,null,null,null,null,null,null,null,null,null,{"$f":"AA195+AC196","v":133},"2023-07-13",1,133,{"$f":"WEEKDAY(AB196,2)","v":4}]
[null,null,null,null,null,null,null,null,null,null,null,null,null,null,null,null,null,null,null,null,null,null,null,null,null,null,134,"2023-07-14",1,{"$f":"AA196+AC197","v":134},5]
[null,null,null,null,null,null,null,null,null,null,null,null,null,null,null,null,null,null,null,null,null,null,null,null,null,null,134,"2023-07-15",0,134,6]
[null,null,null,null,null,null,null,null,null,null,null,null,null,null,null,null,null,null,null,null,null,null,null,null,null,null,134,"2023-07-16",0,134,7]
[null,null,null,null,null,null,null,null,null,null,null,null,null,null,null,null,null,null,null,null,null,null,null,null,null,null,135,"2023-07-17",1,135,1]
[null,null,null,null,null,null,null,null,null,null,null,null,null,null,null,null,null,null,null,null,null,null,null,null,null,null,136,"2023-07-18",1,136,2]
[null,null,null,null,null,null,null,null,null,null,null,null,null,null,null,null,null,null,null,null,null,null,null,null,null,null,137,"2023-07-19",1,137,3]
[null,null,null,null,null,null,null,null,null,null,null,null,null,null,null,null,null,null,null,null,null,null,null,null,null,null,138,"2023-07-20",1,138,4]
[null,null,null,null,null,null,null,null,null,null,null,null,null,null,null,null,null,null,null,null,null,null,null,null,null,null,139,"2023-07-21",1,139,5]
[null,null,null,null,null,null,null,null,null,null,null,null,null,null,null,null,null,null,null,null,null,null,null,null,null,null,139,"2023-07-22",0,139,6]
[null,null,null,null,null,null,null,null,null,null,null,null,null,null,null,null,null,null,null,null,null,null,null,null,null,null,139,"2023-07-23",0,139,7]
[null,null,null,null,null,null,null,null,null,null,null,null,null,null,null,null,null,null,null,null,null,null,null,null,null,null,140,"2023-07-24",1,140,1]
[null,null,null,null,null,null,null,null,null,null,null,null,null,null,null,null,null,null,null,null,null,null,null,null,null,null,141,"2023-07-25",1,141,2]
[null,null,null,null,null,null,null,null,null,null,null,null,null,null,null,null,null,null,null,null,null,null,null,null,null,null,142,"2023-07-26",1,142,3]
[null,null,null,null,null,null,null,null,null,null,null,null,null,null,null,null,null,null,null,null,null,null,null,null,null,null,143,"2023-07-27",1,143,4]
[null,null,null,null,null,null,null,null,null,null,null,null,null,null,null,null,null,null,null,null,null,null,null,null,null,null,144,"2023-07-28",1,144,5]
[null,null,null,null,null,null,null,null,null,null,null,null,null,null,null,null,null,null,null,null,null,null,null,null,null,null,144,"2023-07-29",0,144,6]
[null,null,null,null,null,null,null,null,null,null,null,null,null,null,null,null,null,null,null,null,null,null,null,null,null,null,144,"2023-07-30",0,144,7]
[null,null,null,null,null,null,null,null,null,null,null,null,null,null,null,null,null,null,null,null,null,null,null,null,null,null,145,"2023-07-31",1,145,1]
[null,null,null,null,null,null,null,null,null,null,null,null,null,null,null,null,null,null,null,null,null,null,null,null,null,null,146,"2023-08-01",1,146,2]
[null,null,null,null,null,null,null,null,null,null,null,null,null,null,null,null,null,null,null,null,null,null,null,null,null,null,147,"2023-08-02",1,147,3]
[null,null,null,null,null,null,null,null,null,null,null,null,null,null,null,null,null,null,null,null,null,null,null,null,null,null,148,"2023-08-03",1,148,4]
[null,null,null,null,null,null,null,null,null,null,null,null,null,null,null,null,null,null,null,null,null,null,null,null,null,null,149,"2023-08-04",1,149,5]
[null,null,null,null,null,null,null,null,null,null,null,null,null,null,null,null,null,null,null,null,null,null,null,null,null,null,149,"2023-08-05",0,149,6]
[null,null,null,null,null,null,null,null,null,null,null,null,null,null,null,null,null,null,null,null,null,null,null,null,null,null,149,"2023-08-06",0,149,7]
[null,null,null,null,null,null,null,null,null,null,null,null,null,null,null,null,null,null,null,null,null,null,null,null,null,null,150,"2023-08-07",1,150,1]
[null,null,null,null,null,null,null,null,null,null,null,null,null,null,null,null,null,null,null,null,null,null,null,null,null,null,151,"2023-08-08",1,151,2]
[null,null,null,null,null,null,null,null,null,null,null,null,null,null,null,null,null,null,null,null,null,null,null,null,null,null,152,"2023-08-09",1,152,3]
[null,null,null,null,null,null,null,null,null,null,null,null,null,null,null,null,null,null,null,null,null,null,null,null,null,null,153,"2023-08-10",1,153,4]
[null,null,null,null,null,null,null,null,null,null,null,null,null,null,null,null,null,null,null,null,null,null,null,null,null,null,154,"2023-08-11",1,154,5]
[null,null,null,null,null,null,null,null,null,null,null,null,null,null,null,null,null,null,null,null,null,null,null,null,null,null,154,"2023-08-12",0,154,6]
[null,null,null,null,null,null,null,null,null,null,null,null,null,null,null,null,null,null,null,null,null,null,null,null,null,null,154,"2023-08-13",0,154,7]
[null,null,null,null,null,null,null,null,null,null,null,null,null,null,null,null,null,null,null,null,null,null,null,null,null,null,155,"2023-08-14",1,155,1]
[null,null,null,null,null,null,null,null,null,null,null,null,null,null,null,null,null,null,null,null,null,null,null,null,null,null,156,"2023-08-15",1,156,2]
[null,null,null,null,null,null,null,null,null,null,null,null,null,null,null,null,null,null,null,null,null,null,null,null,null,null,157,"2023-08-16",1,157,3]
[null,null,null,null,null,null,null,null,null,null,null,null,null,null,null,null,null,null,null,null,null,null,null,null,null,null,158,"2023-08-17",1,158,4]
[null,null,null,null,null,null,null,null,null,null,null,null,null,null,null,null,null,null,null,null,null,null,null,null,null,null,159,"2023-08-18",1,159,5]
[null,null,null,null,null,null,null,null,null,null,null,null,null,null,null,null,null,null,null,null,null,null,null,null,null,null,159,"2023-08-19",0,159,6]
[null,null,null,null,null,null,null,null,null,null,null,null,null,null,null,null,null,null,null,null,null,null,null,null,null,null,159,"2023-08-20",0,159,7]
[null,null,null,null,null,null,null,null,null,null,null,null,null,null,null,null,null,null,null,null,null,null,null,null,null,null,160,"2023-08-21",1,160,1]
[null,null,null,null,null,null,null,null,null,null,null,null,null,null,null,null,null,null,null,null,null,null,null,null,null,null,161,"2023-08-22",1,161,2]
[null,null,null,null,null,null,null,null,null,null,null,null,null,null,null,null,null,null,null,null,null,null,null,null,null,null,162,"2023-08-23",1,162,3]
[null,null,null,null,null,null,null,null,null,null,null,null,null,null,null,null,null,null,null,null,null,null,null,null,null,null,163,"2023-08-24",1,163,4]
[null,null,null,null,null,null,null,null,null,null,null,null,null,null,null,null,null,null,null,null,null,null,null,null,null,null,164,"2023-08-25",1,164,5]
[null,null,null,null,null,null,null,null,null,null,null,null,null,null,null,null,null,null,null,null,null,null,null,null,null,null,164,"2023-08-26",0,164,6]
[null,null,null,null,null,null,null,null,null,null,null,null,null,null,null,null,null,null,null,null,null,null,null,null,null,null,164,"2023-08-27",0,164,7]
[null,null,null,null,null,null,null,null,null,null,null,null,null,null,null,null,null,null,null,null,null,null,null,null,null,null,165,"2023-08-28",1,165,1]
[null,null,null,null,null,null,null,null,null,null,null,null,null,null,null,null,null,null,null,null,null,null,null,null,null,null,166,"2023-08-29",1,166,2]
[null,null,null,null,null,null,null,null,null,null,null,null,null,null,null,null,null,null,null,null,null,null,null,null,null,null,167,"2023-08-30",1,167,3]
[null,null,null,null,null,null,null,null,null,null,null,null,null,null,null,null,null,null,null,null,null,null,null,null,null,null,168,"2023-08-31",1,168,4]
[null,null,null,null,null,null,null,null,null,null,null,null,null,null,null,null,null,null,null,null,null,null,null,null,null,null,169,"2023-09-01",1,169,5]
[null,null,null,null,null,null,null,null,null,null,null,null,null,null,null,null,null,null,null,null,null,null,null,null,null,null,169,"2023-09-02",0,169,6]
[null,null,null,null,null,null,null,null,null,null,null,null,null,null,null,null,null,null,null,null,null,null,null,null,null,null,169,"2023-09-03",0,169,7]
[null,null,null,null,null,null,null,null,null,null,null,null,null,null,null,null,null,null,null,null,null,null,null,null,null,null,170,"2023-09-04",1,170,1]
[null,null,null,null,null,null,null,null,null,null,null,null,null,null,null,null,null,null,null,null,null,null,null,null,null,null,171,"2023-09-05",1,171,2]
[null,null,null,null,null,null,null,null,null,null,null,null,null,null,null,null,null,null,null,null,null,null,null,null,null,null,172,"2023-09-06",1,172,3]
[null,null,null,null,null,null,null,null,null,null,null,null,null,null,null,null,null,null,null,null,null,null,null,null,null,null,173,"2023-09-07",1,173,4]
[null,null,null,null,null,null,null,null,null,null,null,null,null,null,null,null,null,null,null,null,null,null,null,null,null,null,174,"2023-09-08",1,174,5]
[null,null,null,null,null,null,null,null,null,null,null,null,null,null,null,null,null,null,null,null,null,null,null,null,null,null,174,"2023-09-09",0,174,6]
[null,null,null,null,null,null,null,null,null,null,null,null,null,null,null,null,null,null,null,null,null,null,null,null,null,null,174,"2023-09-10",0,174,7]
[null,null,null,null,null,null,null,null,null,null,null,null,null,null,null,null,null,null,null,null,null,null,null,null,null,null,175,"2023-09-11",1,175,1]
[null,null,null,null,null,null,null,null,null,null,null,null,null,null,null,null,null,null,null,null,null,null,null,null,null,null,176,"2023-09-12",1,176,2]
[null,null,null,null,null,null,null,null,null,null,null,null,null,null,null,null,null,null,null,null,null,null,null,null,null,null,177,"2023-09-13",1,177,3]
[null,null,null,null,null,null,null,null,null,null,null,null,null,null,null,null,null,null,null,null,null,null,null,null,null,null,178,"2023-09-14",1,178,4]
[null,null,null,null,null,null,null,null,null,null,null,null,null,null,null,null,null,null,null,null,null,null,null,null,null,null,{"$f":"AA259+AC260","v":179},"2023-09-15",1,179,{"$f":"WEEKDAY(AB260,2)","v":5}]
[null,null,null,null,null,null,null,null,null,null,null,null,null,null,null,null,null,null,null,null,null,null,null,null,null,null,179,"2023-09-16",0,{"$f":"AA260+AC261","v":179},6]
[null,null,null,null,null,null,null,null,null,null,null,null,null,null,null,null,null,null,null,null,null,null,null,null,null,null,179,"2023-09-17",0,179,7]
[null,null,null,null,null,null,null,null,null,null,null,null,null,null,null,null,null,null,null,null,null,null,null,null,null,null,180,"2023-09-18",1,180,1]
[null,null,null,null,null,null,null,null,null,null,null,null,null,null,null,null,null,null,null,null,null,null,null,null,null,null,181,"2023-09-19",1,181,2]
[null,null,null,null,null,null,null,null,null,null,null,null,null,null,null,null,null,null,null,null,null,null,null,null,null,null,182,"2023-09-20",1,182,3]
[null,null,null,null,null,null,null,null,null,null,null,null,null,null,null,null,null,null,null,null,null,null,null,null,null,null,183,"2023-09-21",1,183,4]
[null,null,null,null,null,null,null,null,null,null,null,null,null,null,null,null,null,null,null,null,null,null,null,null,null,null,184,"2023-09-22",1,184,5]
[null,null,null,null,null,null,null,null,null,null,null,null,null,null,null,null,null,null,null,null,null,null,null,null,null,null,184,"2023-09-23",0,184,6]
[null,null,null,null,null,null,null,null,null,null,null,null,null,null,null,null,null,null,null,null,null,null,null,null,null,null,184,"2023-09-24",0,184,7]
[null,null,null,null,null,null,null,null,null,null,null,null,null,null,null,null,null,null,null,null,null,null,null,null,null,null,185,"2023-09-25",1,185,1]
[null,null,null,null,null,null,null,null,null,null,null,null,null,null,null,null,null,null,null,null,null,null,null,null,null,null,186,"2023-09-26",1,186,2]
[null,null,null,null,null,null,null,null,null,null,null,null,null,null,null,null,null,null,null,null,null,null,null,null,null,null,187,"2023-09-27",1,187,3]
[null,null,null,null,null,null,null,null,null,null,null,null,null,null,null,null,null,null,null,null,null,null,null,null,null,null,187,"2023-09-28",0,187,4]
[null,null,null,null,null,null,null,null,null,null,null,null,null,null,null,null,null,null,null,null,null,null,null,null,null,null,188,"2023-09-29",1,188,5]
[null,null,null,null,null,null,null,null,null,null,null,null,null,null,null,null,null,null,null,null,null,null,null,null,null,null,188,"2023-09-30",0,188,6]
[null,null,null,null,null,null,null,null,null,null,null,null,null,null,null,null,null,null,null,null,null,null,null,null,null,null,188,"2023-10-01",0,188,7]
[null,null,null,null,null,null,null,null,null,null,null,null,null,null,null,null,null,null,null,null,null,null,null,null,null,null,189,"2023-10-02",1,189,1]
[null,null,null,null,null,null,null,null,null,null,null,null,null,null,null,null,null,null,null,null,null,null,null,null,null,null,190,"2023-10-03",1,190,2]
[null,null,null,null,null,null,null,null,null,null,null,null,null,null,null,null,null,null,null,null,null,null,null,null,null,null,191,"2023-10-04",1,191,3]
[null,null,null,null,null,null,null,null,null,null,null,null,null,null,null,null,null,null,null,null,null,null,null,null,null,null,192,"2023-10-05",1,192,4]
[null,null,null,null,null,null,null,null,null,null,null,null,null,null,null,null,null,null,null,null,null,null,null,null,null,null,193,"2023-10-06",1,193,5]
[null,null,null,null,null,null,null,null,null,null,null,null,null,null,null,null,null,null,null,null,null,null,null,null,null,null,193,"2023-10-07",0,193,6]
[null,null,null,null,null,null,null,null,null,null,null,null,null,null,null,null,null,null,null,null,null,null,null,null,null,null,193,"2023-10-08",0,193,7]
[null,null,null,null,null,null,null,null,null,null,null,null,null,null,null,null,null,null,null,null,null,null,null,null,null,null,194,"2023-10-09",1,194,1]
[null,null,null,null,null,null,null,null,null,null,null,null,null,null,null,null,null,null,null,null,null,null,null,null,null,null,195,"2023-10-10",1,195,2]
[null,null,null,null,null,null,null,null,null,null,null,null,null,null,null,null,null,null,null,null,null,null,null,null,null,null,196,"2023-10-11",1,196,3]
[null,null,null,null,null,null,null,null,null,null,null,null,null,null,null,null,null,null,null,null,null,null,null,null,null,null,197,"2023-10-12",1,197,4]
[null,null,null,null,null,null,null,null,null,null,null,null,null,null,null,null,null,null,null,null,null,null,null,null,null,null,198,"2023-10-13",1,198,5]
[null,null,null,null,null,null,null,null,null,null,null,null,null,null,null,null,null,null,null,null,null,null,null,null,null,null,198,"2023-10-14",0,198,6]
[null,null,null,null,null,null,null,null,null,null,null,null,null,null,null,null,null,null,null,null,null,null,null,null,null,null,198,"2023-10-15",0,198,7]
[null,null,null,null,null,null,null,null,null,null,null,null,null,null,null,null,null,null,null,null,null,null,null,null,null,null,199,"2023-10-16",1,199,1]
[null,null,null,null,null,null,null,null,null,null,null,null,null,null,null,null,null,null,null,null,null,null,null,null,null,null,200,"2023-10-17",1,200,2]
[null,null,null,null,null,null,null,null,null,null,null,null,null,null,null,null,null,null,null,null,null,null,null,null,null,null,201,"2023-10-18",1,201,3]
[null,null,null,null,null,null,null,null,null,null,null,null,null,null,null,null,null,null,null,null,null,null,null,null,null,null,202,"2023-10-19",1,202,4]
[null,null,null,null,null,null,null,null,null,null,null,null,null,null,null,null,null,null,null,null,null,null,null,null,null,null,203,"2023-10-20",1,203,5]
[null,null,null,null,null,null,null,null,null,null,null,null,null,null,null,null,null,null,null,null,null,null,null,null,null,null,203,"2023-10-21",0,203,6]
[null,null,null,null,null,null,null,null,null,null,null,null,null,null,null,null,null,null,null,null,null,null,null,null,null,null,203,"2023-10-22",0,203,7]
[null,null,null,null,null,null,null,null,null,null,null,null,null,null,null,null,null,null,null,null,null,null,null,null,null,null,204,"2023-10-23",1,204,1]
[null,null,null,null,null,null,null,null,null,null,null,null,null,null,null,null,null,null,null,null,null,null,null,null,null,null,205,"2023-10-24",1,205,2]
[null,null,null,null,null,null,null,null,null,null,null,null,null,null,null,null,null,null,null,null,null,null,null,null,null,null,206,"2023-10-25",1,206,3]
[null,null,null,null,null,null,null,null,null,null,null,null,null,null,null,null,null,null,null,null,null,null,null,null,null,null,207,"2023-10-26",1,207,4]
[null,null,null,null,null,null,null,null,null,null,null,null,null,null,null,null,null,null,null,null,null,null,null,null,null,null,208,"2023-10-27",1,208,5]
[null,null,null,null,null,null,null,null,null,null,null,null,null,null,null,null,null,null,null,null,null,null,null,null,null,null,208,"2023-10-28",0,208,6]
[null,null,null,null,null,null,null,null,null,null,null,null,null,null,null,null,null,null,null,null,null,null,null,null,null,null,208,"2023-10-29",0,208,7]
[null,null,null,null,null,null,null,null,null,null,null,null,null,null,null,null,null,null,null,null,null,null,null,null,null,null,209,"2023-10-30",1,209,1]
[null,null,null,null,null,null,null,null,null,null,null,null,null,null,null,null,null,null,null,null,null,null,null,null,null,null,210,"2023-10-31",1,210,2]
[null,null,null,null,null,null,null,null,null,null,null,null,null,null,null,null,null,null,null,null,null,null,null,null,null,null,211,"2023-11-01",1,211,3]
[null,null,null,null,null,null,null,null,null,null,null,null,null,null,null,null,null,null,null,null,null,null,null,null,null,null,212,"2023-11-02",1,212,4]
[null,null,null,null,null,null,null,null,null,null,null,null,null,null,null,null,null,null,null,null,null,null,null,null,null,null,213,"2023-11-03",1,213,5]
[null,null,null,null,null,null,null,null,null,null,null,null,null,null,null,null,null,null,null,null,null,null,null,null,null,null,213,"2023-11-04",0,213,6]
[null,null,null,null,null,null,null,null,null,null,null,null,null,null,null,null,null,null,null,null,null,null,null,null,null,null,213,"2023-11-05",0,213,7]
[null,null,null,null,null,null,null,null,null,null,null,null,null,null,null,null,null,null,null,null,null,null,null,null,null,null,214,"2023-11-06",1,214,1]
[null,null,null,null,null,null,null,null,null,null,null,null,null,null,null,null,null,null,null,null,null,null,null,null,null,null,215,"2023-11-07",1,215,2]
[null,null,null,null,null,null,null,null,null,null,null,null,null,null,null,null,null,null,null,null,null,null,null,null,null,null,216,"2023-11-08",1,216,3]
[null,null,null,null,null,null,null,null,null,null,null,null,null,null,null,null,null,null,null,null,null,null,null,null,null,null,217,"2023-11-09",1,217,4]
[null,null,null,null,null,null,null,null,null,null,null,null,null,null,null,null,null,null,null,null,null,null,null,null,null,null,218,"2023-11-10",1,218,5]
[null,null,null,null,null,null,null,null,null,null,null,null,null,null,null,null,null,null,null,null,null,null,null,null,null,null,218,"2023-11-11",0,218,6]
[null,null,null,null,null,null,null,null,null,null,null,null,null,null,null,null,null,null,null,null,null,null,null,null,null,null,218,"2023-11-12",0,218,7]
[null,null,null,null,null,null,null,null,null,null,null,null,null,null,null,null,null,null,null,null,null,null,null,null,null,null,219,"2023-11-13",1,219,1]
[null,null,null,null,null,null,null,null,null,null,null,null,null,null,null,null,null,null,null,null,null,null,null,null,null,null,220,"2023-11-14",1,220,2]
[null,null,null,null,null,null,null,null,null,null,null,null,null,null,null,null,null,null,null,null,null,null,null,null,null,null,221,"2023-11-15",1,221,3]
[null,null,null,null,null,null,null,null,null,null,null,null,null,null,null,null,null,null,null,null,null,null,null,null,null,null,222,"2023-11-16",1,222,4]
[null,null,null,null,null,null,null,null,null,null,null,null,null,null,null,null,null,null,null,null,null,null,null,null,null,null,222,"2023-11-17",0,222,5]
[null,null,null,null,null,null,null,null,null,null,null,null,null,null,null,null,null,null,null,null,null,null,null,null,null,null,{"$f":"AA323+AC324","v":222},"2023-11-18",0,222,{"$f":"WEEKDAY(AB324,2)","v":6}]
[null,null,null,null,null,null,null,null,null,null,null,null,null,null,null,null,null,null,null,null,null,null,null,null,null,null,222,"2023-11-19",0,{"$f":"AA324+AC325","v":222},7]
[null,null,null,null,null,null,null,null,null,null,null,null,null,null,null,null,null,null,null,null,null,null,null,null,null,null,223,"2023-11-20",1,223,1]
[null,null,null,null,null,null,null,null,null,null,null,null,null,null,null,null,null,null,null,null,null,null,null,null,null,null,224,"2023-11-21",1,224,2]
[null,null,null,null,null,null,null,null,null,null,null,null,null,null,null,null,null,null,null,null,null,null,null,null,null,null,225,"2023-11-22",1,225,3]
[null,null,null,null,null,null,null,null,null,null,null,null,null,null,null,null,null,null,null,null,null,null,null,null,null,null,226,"2023-11-23",1,226,4]
[null,null,null,null,null,null,null,null,null,null,null,null,null,null,null,null,null,null,null,null,null,null,null,null,null,null,227,"2023-11-24",1,227,5]
[null,null,null,null,null,null,null,null,null,null,null,null,null,null,null,null,null,null,null,null,null,null,null,null,null,null,227,"2023-11-25",0,227,6]
[null,null,null,null,null,null,null,null,null,null,null,null,null,null,null,null,null,null,null,null,null,null,null,null,null,null,227,"2023-11-26",0,227,7]
[null,null,null,null,null,null,null,null,null,null,null,null,null,null,null,null,null,null,null,null,null,null,null,null,null,null,228,"2023-11-27",1,228,1]
[null,null,null,null,null,null,null,null,null,null,null,null,null,null,null,null,null,null,null,null,null,null,null,null,null,null,229,"2023-11-28",1,229,2]
[null,null,null,null,null,null,null,null,null,null,null,null,null,null,null,null,null,null,null,null,null,null,null,null,null,null,230,"2023-11-29",1,230,3]
[null,null,null,null,null,null,null,null,null,null,null,null,null,null,null,null,null,null,null,null,null,null,null,null,null,null,231,"2023-11-30",1,231,4]
[null,null,null,null,null,null,null,null,null,null,null,null,null,null,null,null,null,null,null,null,null,null,null,null,null,null,232,"2023-12-01",1,232,5]
[null,null,null,null,null,null,null,null,null,null,null,null,null,null,null,null,null,null,null,null,null,null,null,null,null,null,232,"2023-12-02",0,232,6]
[null,null,null,null,null,null,null,null,null,null,null,null,null,null,null,null,null,null,null,null,null,null,null,null,null,null,232,"2023-12-03",0,232,7]
[null,null,null,null,null,null,null,null,null,null,null,null,null,null,null,null,null,null,null,null,null,null,null,null,null,null,233,"2023-12-04",1,233,1]
[null,null,null,null,null,null,null,null,null,null,null,null,null,null,null,null,null,null,null,null,null,null,null,null,null,null,234,"2023-12-05",1,234,2]
[null,null,null,null,null,null,null,null,null,null,null,null,null,null,null,null,null,null,null,null,null,null,null,null,null,null,235,"2023-12-06",1,235,3]
[null,null,null,null,null,null,null,null,null,null,null,null,null,null,null,null,null,null,null,null,null,null,null,null,null,null,236,"2023-12-07",1,236,4]
[null,null,null,null,null,null,null,null,null,null,null,null,null,null,null,null,null,null,null,null,null,null,null,null,null,null,237,"2023-12-08",1,237,5]
[null,null,null,null,null,null,null,null,null,null,null,null,null,null,null,null,null,null,null,null,null,null,null,null,null,null,237,"2023-12-09",0,237,6]
[null,null,null,null,null,null,null,null,null,null,null,null,null,null,null,null,null,null,null,null,null,null,null,null,null,null,237,"2023-12-10",0,237,7]
[null,null,null,null,null,null,null,null,null,null,null,null,null,null,null,null,null,null,null,null,null,null,null,null,null,null,238,"2023-12-11",1,238,1]
[null,null,null,null,null,null,null,null,null,null,null,null,null,null,null,null,null,null,null,null,null,null,null,null,null,null,239,"2023-12-12",1,239,2]
[null,null,null,null,null,null,null,null,null,null,null,null,null,null,null,null,null,null,null,null,null,null,null,null,null,null,240,"2023-12-13",1,240,3]
[null,null,null,null,null,null,null,null,null,null,null,null,null,null,null,null,null,null,null,null,null,null,null,null,null,null,241,"2023-12-14",1,241,4]
[null,null,null,null,null,null,null,null,null,null,null,null,null,null,null,null,null,null,null,null,null,null,null,null,null,null,242,"2023-12-15",1,242,5]
[null,null,null,null,null,null,null,null,null,null,null,null,null,null,null,null,null,null,null,null,null,null,null,null,null,null,242,"2023-12-16",0,242,6]
[null,null,null,null,null,null,null,null,null,null,null,null,null,null,null,null,null,null,null,null,null,null,null,null,null,null,242,"2023-12-17",0,242,7]
[null,null,null,null,null,null,null,null,null,null,null,null,null,null,null,null,null,null,null,null,null,null,null,null,null,null,243,"2023-12-18",1,243,1]
[null,null,null,null,null,null,null,null,null,null,null,null,null,null,null,null,null,null,null,null,null,null,null,null,null,null,244,"2023-12-19",1,244,2]
[null,null,null,null,null,null,null,null,null,null,null,null,null,null,null,null,null,null,null,null,null,null,null,null,null,null,245,"2023-12-20",1,245,3]
[null,null,null,null,null,null,null,null,null,null,null,null,null,null,null,null,null,null,null,null,null,null,null,null,null,null,246,"2023-12-21",1,246,4]
[null,null,null,null,null,null,null,null,null,null,null,null,null,null,null,null,null,null,null,null,null,null,null,null,null,null,247,"2023-12-22",1,247,5]
[null,null,null,null,null,null,null,null,null,null,null,null,null,null,null,null,null,null,null,null,null,null,null,null,null,null,247,"2023-12-23",0,247,6]
[null,null,null,null,null,null,null,null,null,null,null,null,null,null,null,null,null,null,null,null,null,null,null,null,null,null,247,"2023-12-24",0,247,7]
[null,null,null,null,null,null,null,null,null,null,null,null,null,null,null,null,null,null,null,null,null,null,null,null,null,null,247,"2023-12-25",0,247,1]
[null,null,null,null,null,null,null,null,null,null,null,null,null,null,null,null,null,null,null,null,null,null,null,null,null,null,247,"2023-12-26",0,247,2]
[null,null,null,null,null,null,null,null,null,null,null,null,null,null,null,null,null,null,null,null,null,null,null,null,null,null,248,"2023-12-27",1,248,3]
[null,null,null,null,null,null,null,null,null,null,null,null,null,null,null,null,null,null,null,null,null,null,null,null,null,null,249,"2023-12-28",1,249,4]
[null,null,null,null,null,null,null,null,null,null,null,null,null,null,null,null,null,null,null,null,null,null,null,null,null,null,250,"2023-12-29",1,250,5]
[null,null,null,null,null,null,null,null,null,null,null,null,null,null,null,null,null,null,null,null,null,null,null,null,null,null,250,"2023-12-30",0,250,6]
[null,null,null,null,null,null,null,null,null,null,null,null,null,null,null,null,null,null,null,null,null,null,null,null,null,null,250,"2023-12-31",0,250,7]
[null,null,null,null,null,null,null,null,null,null,null,null,null,null,null,null,null,null,null,null,null,null,null,null,null,null,250,"2024-01-01",0,250,1]
[null,null,null,null,null,null,null,null,null,null,null,null,null,null,null,null,null,null,null,null,null,null,null,null,null,null,251,"2024-01-02",1,251,2]
[null,null,null,null,null,null,null,null,null,null,null,null,null,null,null,null,null,null,null,null,null,null,null,null,null,null,252,"2024-01-03",1,252,3]
[null,null,null,null,null,null,null,null,null,null,null,null,null,null,null,null,null,null,null,null,null,null,null,null,null,null,253,"2024-01-04",1,253,4]
[null,null,null,null,null,null,null,null,null,null,null,null,null,null,null,null,null,null,null,null,null,null,null,null,null,null,254,"2024-01-05",1,254,5]
[null,null,null,null,null,null,null,null,null,null,null,null,null,null,null,null,null,null,null,null,null,null,null,null,null,null,254,"2024-01-06",0,254,6]
[null,null,null,null,null,null,null,null,null,null,null,null,null,null,null,null,null,null,null,null,null,null,null,null,null,null,254,"2024-01-07",0,254,7]
[null,null,null,null,null,null,null,null,null,null,null,null,null,null,null,null,null,null,null,null,null,null,null,null,null,null,255,"2024-01-08",1,255,1]
[null,null,null,null,null,null,null,null,null,null,null,null,null,null,null,null,null,null,null,null,null,null,null,null,null,null,256,"2024-01-09",1,256,2]
[null,null,null,null,null,null,null,null,null,null,null,null,null,null,null,null,null,null,null,null,null,null,null,null,null,null,257,"2024-01-10",1,257,3]
[null,null,null,null,null,null,null,null,null,null,null,null,null,null,null,null,null,null,null,null,null,null,null,null,null,null,258,"2024-01-11",1,258,4]
[null,null,null,null,null,null,null,null,null,null,null,null,null,null,null,null,null,null,null,null,null,null,null,null,null,null,259,"2024-01-12",1,259,5]
[null,null,null,null,null,null,null,null,null,null,null,null,null,null,null,null,null,null,null,null,null,null,null,null,null,null,259,"2024-01-13",0,259,6]
[null,null,null,null,null,null,null,null,null,null,null,null,null,null,null,null,null,null,null,null,null,null,null,null,null,null,259,"2024-01-14",0,259,7]
[null,null,null,null,null,null,null,null,null,null,null,null,null,null,null,null,null,null,null,null,null,null,null,null,null,null,260,"2024-01-15",1,260,1]
[null,null,null,null,null,null,null,null,null,null,null,null,null,null,null,null,null,null,null,null,null,null,null,null,null,null,261,"2024-01-16",1,261,2]
[null,null,null,null,null,null,null,null,null,null,null,null,null,null,null,null,null,null,null,null,null,null,null,null,null,null,262,"2024-01-17",1,262,3]
[null,null,null,null,null,null,null,null,null,null,null,null,null,null,null,null,null,null,null,null,null,null,null,null,null,null,263,"2024-01-18",1,263,4]
[null,null,null,null,null,null,null,null,null,null,null,null,null,null,null,null,null,null,null,null,null,null,null,null,null,null,264,"2024-01-19",1,264,5]
[null,null,null,null,null,null,null,null,null,null,null,null,null,null,null,null,null,null,null,null,null,null,null,null,null,null,264,"2024-01-20",0,264,6]
[null,null,null,null,null,null,null,null,null,null,null,null,null,null,null,null,null,null,null,null,null,null,null,null,null,null,{"$f":"AA387+AC388","v":264},"2024-01-21",0,264,{"$f":"WEEKDAY(AB388,2)","v":7}]
[null,null,null,null,null,null,null,null,null,null,null,null,null,null,null,null,null,null,null,null,null,null,null,null,null,null,265,"2024-01-22",1,{"$f":"AA388+AC389","v":265},1]
[null,null,null,null,null,null,null,null,null,null,null,null,null,null,null,null,null,null,null,null,null,null,null,null,null,null,266,"2024-01-23",1,266,2]
[null,null,null,null,null,null,null,null,null,null,null,null,null,null,null,null,null,null,null,null,null,null,null,null,null,null,267,"2024-01-24",1,267,3]
[null,null,null,null,null,null,null,null,null,null,null,null,null,null,null,null,null,null,null,null,null,null,null,null,null,null,268,"2024-01-25",1,268,4]
[null,null,null,null,null,null,null,null,null,null,null,null,null,null,null,null,null,null,null,null,null,null,null,null,null,null,269,"2024-01-26",1,269,5]
[null,null,null,null,null,null,null,null,null,null,null,null,null,null,null,null,null,null,null,null,null,null,null,null,null,null,269,"2024-01-27",0,269,6]
[null,null,null,null,null,null,null,null,null,null,null,null,null,null,null,null,null,null,null,null,null,null,null,null,null,null,269,"2024-01-28",0,269,7]
[null,null,null,null,null,null,null,null,null,null,null,null,null,null,null,null,null,null,null,null,null,null,null,null,null,null,270,"2024-01-29",1,270,1]
[null,null,null,null,null,null,null,null,null,null,null,null,null,null,null,null,null,null,null,null,null,null,null,null,null,null,271,"2024-01-30",1,271,2]
[null,null,null,null,null,null,null,null,null,null,null,null,null,null,null,null,null,null,null,null,null,null,null,null,null,null,272,"2024-01-31",1,272,3]
[null,null,null,null,null,null,null,null,null,null,null,null,null,null,null,null,null,null,null,null,null,null,null,null,null,null,273,"2024-02-01",1,273,4]
[null,null,null,null,null,null,null,null,null,null,null,null,null,null,null,null,null,null,null,null,null,null,null,null,null,null,274,"2024-02-02",1,274,5]
[null,null,null,null,null,null,null,null,null,null,null,null,null,null,null,null,null,null,null,null,null,null,null,null,null,null,274,"2024-02-03",0,274,6]
[null,null,null,null,null,null,null,null,null,null,null,null,null,null,null,null,null,null,null,null,null,null,null,null,null,null,274,"2024-02-04",0,274,7]
[null,null,null,null,null,null,null,null,null,null,null,null,null,null,null,null,null,null,null,null,null,null,null,null,null,null,275,"2024-02-05",1,275,1]
[null,null,null,null,null,null,null,null,null,null,null,null,null,null,null,null,null,null,null,null,null,null,null,null,null,null,276,"2024-02-06",1,276,2]
[null,null,null,null,null,null,null,null,null,null,null,null,null,null,null,null,null,null,null,null,null,null,null,null,null,null,277,"2024-02-07",1,277,3]
[null,null,null,null,null,null,null,null,null,null,null,null,null,null,null,null,null,null,null,null,null,null,null,null,null,null,278,"2024-02-08",1,278,4]
[null,null,null,null,null,null,null,null,null,null,null,null,null,null,null,null,null,null,null,null,null,null,null,null,null,null,279,"2024-02-09",1,279,5]
[null,null,null,null,null,null,null,null,null,null,null,null,null,null,null,null,null,null,null,null,null,null,null,null,null,null,279,"2024-02-10",0,279,6]
[null,null,null,null,null,null,null,null,null,null,null,null,null,null,null,null,null,null,null,null,null,null,null,null,null,null,279,"2024-02-11",0,279,7]
[null,null,null,null,null,null,null,null,null,null,null,null,null,null,null,null,null,null,null,null,null,null,null,null,null,null,280,"2024-02-12",1,280,1]
[null,null,null,null,null,null,null,null,null,null,null,null,null,null,null,null,null,null,null,null,null,null,null,null,null,null,281,"2024-02-13",1,281,2]
[null,null,null,null,null,null,null,null,null,null,null,null,null,null,null,null,null,null,null,null,null,null,null,null,null,null,282,"2024-02-14",1,282,3]
[null,null,null,null,null,null,null,null,null,null,null,null,null,null,null,null,null,null,null,null,null,null,null,null,null,null,283,"2024-02-15",1,283,4]
[null,null,null,null,null,null,null,null,null,null,null,null,null,null,null,null,null,null,null,null,null,null,null,null,null,null,284,"2024-02-16",1,284,5]
[null,null,null,null,null,null,null,null,null,null,null,null,null,null,null,null,null,null,null,null,null,null,null,null,null,null,284,"2024-02-17",0,284,6]
[null,null,null,null,null,null,null,null,null,null,null,null,null,null,null,null,null,null,null,null,null,null,null,null,null,null,284,"2024-02-18",0,284,7]
[null,null,null,null,null,null,null,null,null,null,null,null,null,null,null,null,null,null,null,null,null,null,null,null,null,null,285,"2024-02-19",1,285,1]
[null,null,null,null,null,null,null,null,null,null,null,null,null,null,null,null,null,null,null,null,null,null,null,null,null,null,286,"2024-02-20",1,286,2]
[null,null,null,null,null,null,null,null,null,null,null,null,null,null,null,null,null,null,null,null,null,null,null,null,null,null,287,"2024-02-21",1,287,3]
[null,null,null,null,null,null,null,null,null,null,null,null,null,null,null,null,null,null,null,null,null,null,null,null,null,null,288,"2024-02-22",1,288,4]
[null,null,null,null,null,null,null,null,null,null,null,null,null,null,null,null,null,null,null,null,null,null,null,null,null,null,289,"2024-02-23",1,289,5]
[null,null,null,null,null,null,null,null,null,null,null,null,null,null,null,null,null,null,null,null,null,null,null,null,null,null,289,"2024-02-24",0,289,6]
[null,null,null,null,null,null,null,null,null,null,null,null,null,null,null,null,null,null,null,null,null,null,null,null,null,null,289,"2024-02-25",0,289,7]
[null,null,null,null,null,null,null,null,null,null,null,null,null,null,null,null,null,null,null,null,null,null,null,null,null,null,290,"2024-02-26",1,290,1]
[null,null,null,null,null,null,null,null,null,null,null,null,null,null,null,null,null,null,null,null,null,null,null,null,null,null,291,"2024-02-27",1,291,2]
[null,null,null,null,null,null,null,null,null,null,null,null,null,null,null,null,null,null,null,null,null,null,null,null,null,null,292,"2024-02-28",1,292,3]
[null,null,null,null,null,null,null,null,null,null,null,null,null,null,null,null,null,null,null,null,null,null,null,null,null,null,293,"2024-02-29",1,293,4]
[null,null,null,null,null,null,null,null,null,null,null,null,null,null,null,null,null,null,null,null,null,null,null,null,null,null,294,"2024-03-01",1,294,5]
[null,null,null,null,null,null,null,null,null,null,null,null,null,null,null,null,null,null,null,null,null,null,null,null,null,null,294,"2024-03-02",0,294,6]
[null,null,null,null,null,null,null,null,null,null,null,null,null,null,null,null,null,null,null,null,null,null,null,null,null,null,294,"2024-03-03",0,294,7]
[null,null,null,null,null,null,null,null,null,null,null,null,null,null,null,null,null,null,null,null,null,null,null,null,null,null,295,"2024-03-04",1,295,1]
[null,null,null,null,null,null,null,null,null,null,null,null,null,null,null,null,null,null,null,null,null,null,null,null,null,null,296,"2024-03-05",1,296,2]
[null,null,null,null,null,null,null,null,null,null,null,null,null,null,null,null,null,null,null,null,null,null,null,null,null,null,297,"2024-03-06",1,297,3]
[null,null,null,null,null,null,null,null,null,null,null,null,null,null,null,null,null,null,null,null,null,null,null,null,null,null,298,"2024-03-07",1,298,4]
[null,null,null,null,null,null,null,null,null,null,null,null,null,null,null,null,null,null,null,null,null,null,null,null,null,null,299,"2024-03-08",1,299,5]
[null,null,null,null,null,null,null,null,null,null,null,null,null,null,null,null,null,null,null,null,null,null,null,null,null,null,299,"2024-03-09",0,299,6]
[null,null,null,null,null,null,null,null,null,null,null,null,null,null,null,null,null,null,null,null,null,null,null,null,null,null,299,"2024-03-10",0,299,7]
[null,null,null,null,null,null,null,null,null,null,null,null,null,null,null,null,null,null,null,null,null,null,null,null,null,null,300,"2024-03-11",1,300,1]
[null,null,null,null,null,null,null,null,null,null,null,null,null,null,null,null,null,null,null,null,null,null,null,null,null,null,301,"2024-03-12",1,301,2]
[null,null,null,null,null,null,null,null,null,null,null,null,null,null,null,null,null,null,null,null,null,null,null,null,null,null,302,"2024-03-13",1,302,3]
[null,null,null,null,null,null,null,null,null,null,null,null,null,null,null,null,null,null,null,null,null,null,null,null,null,null,303,"2024-03-14",1,303,4]
[null,null,null,null,null,null,null,null,null,null,null,null,null,null,null,null,null,null,null,null,null,null,null,null,null,null,304,"2024-03-15",1,304,5]
[null,null,null,null,null,null,null,null,null,null,null,null,null,null,null,null,null,null,null,null,null,null,null,null,null,null,304,"2024-03-16",0,304,6]
[null,null,null,null,null,null,null,null,null,null,null,null,null,null,null,null,null,null,null,null,null,null,null,null,null,null,304,"2024-03-17",0,304,7]
[null,null,null,null,null,null,null,null,null,null,null,null,null,null,null,null,null,null,null,null,null,null,null,null,null,null,305,"2024-03-18",1,305,1]
[null,null,null,null,null,null,null,null,null,null,null,null,null,null,null,null,null,null,null,null,null,null,null,null,null,null,306,"2024-03-19",1,306,2]
[null,null,null,null,null,null,null,null,null,null,null,null,null,null,null,null,null,null,null,null,null,null,null,null,null,null,307,"2024-03-20",1,307,3]
[null,null,null,null,null,null,null,null,null,null,null,null,null,null,null,null,null,null,null,null,null,null,null,null,null,null,308,"2024-03-21",1,308,4]
[null,null,null,null,null,null,null,null,null,null,null,null,null,null,null,null,null,null,null,null,null,null,null,null,null,null,309,"2024-03-22",1,309,5]
[null,null,null,null,null,null,null,null,null,null,null,null,null,null,null,null,null,null,null,null,null,null,null,null,null,null,309,"2024-03-23",0,309,6]
[null,null,null,null,null,null,null,null,null,null,null,null,null,null,null,null,null,null,null,null,null,null,null,null,null,null,309,"2024-03-24",0,309,7]
[null,null,null,null,null,null,null,null,null,null,null,null,null,null,null,null,null,null,null,null,null,null,null,null,null,null,{"$f":"AA451+AC452","v":310},"2024-03-25",1,310,{"$f":"WEEKDAY(AB452,2)","v":1}]
[null,null,null,null,null,null,null,null,null,null,null,null,null,null,null,null,null,null,null,null,null,null,null,null,null,null,311,"2024-03-26",1,{"$f":"AA452+AC453","v":311},2]
[null,null,null,null,null,null,null,null,null,null,null,null,null,null,null,null,null,null,null,null,null,null,null,null,null,null,312,"2024-03-27",1,312,3]
[null,null,null,null,null,null,null,null,null,null,null,null,null,null,null,null,null,null,null,null,null,null,null,null,null,null,313,"2024-03-28",1,313,4]
[null,null,null,null,null,null,null,null,null,null,null,null,null,null,null,null,null,null,null,null,null,null,null,null,null,null,313,"2024-03-29",0,313,5]
[null,null,null,null,null,null,null,null,null,null,null,null,null,null,null,null,null,null,null,null,null,null,null,null,null,null,313,"2024-03-30",0,313,6]
[null,null,null,null,null,null,null,null,null,null,null,null,null,null,null,null,null,null,null,null,null,null,null,null,null,null,313,"2024-03-31",0,313,7]
[null,null,null,null,null,null,null,null,null,null,null,null,null,null,null,null,null,null,null,null,null,null,null,null,null,null,313,"2024-04-01",0,313,1]
[null,null,null,null,null,null,null,null,null,null,null,null,null,null,null,null,null,null,null,null,null,null,null,null,null,null,314,"2024-04-02",1,314,2]
[null,null,null,null,null,null,null,null,null,null,null,null,null,null,null,null,null,null,null,null,null,null,null,null,null,null,315,"2024-04-03",1,315,3]
[null,null,null,null,null,null,null,null,null,null,null,null,null,null,null,null,null,null,null,null,null,null,null,null,null,null,316,"2024-04-04",1,316,4]
[null,null,null,null,null,null,null,null,null,null,null,null,null,null,null,null,null,null,null,null,null,null,null,null,null,null,317,"2024-04-05",1,317,5]
[null,null,null,null,null,null,null,null,null,null,null,null,null,null,null,null,null,null,null,null,null,null,null,null,null,null,317,"2024-04-06",0,317,6]
[null,null,null,null,null,null,null,null,null,null,null,null,null,null,null,null,null,null,null,null,null,null,null,null,null,null,317,"2024-04-07",0,317,7]
[null,null,null,null,null,null,null,null,null,null,null,null,null,null,null,null,null,null,null,null,null,null,null,null,null,null,318,"2024-04-08",1,318,1]
[null,null,null,null,null,null,null,null,null,null,null,null,null,null,null,null,null,null,null,null,null,null,null,null,null,null,319,"2024-04-09",1,319,2]
[null,null,null,null,null,null,null,null,null,null,null,null,null,null,null,null,null,null,null,null,null,null,null,null,null,null,320,"2024-04-10",1,320,3]
[null,null,null,null,null,null,null,null,null,null,null,null,null,null,null,null,null,null,null,null,null,null,null,null,null,null,321,"2024-04-11",1,321,4]
[null,null,null,null,null,null,null,null,null,null,null,null,null,null,null,null,null,null,null,null,null,null,null,null,null,null,322,"2024-04-12",1,322,5]
[null,null,null,null,null,null,null,null,null,null,null,null,null,null,null,null,null,null,null,null,null,null,null,null,null,null,322,"2024-04-13",0,322,6]
[null,null,null,null,null,null,null,null,null,null,null,null,null,null,null,null,null,null,null,null,null,null,null,null,null,null,322,"2024-04-14",0,322,7]
[null,null,null,null,null,null,null,null,null,null,null,null,null,null,null,null,null,null,null,null,null,null,null,null,null,null,323,"2024-04-15",1,323,1]
[null,null,null,null,null,null,null,null,null,null,null,null,null,null,null,null,null,null,null,null,null,null,null,null,null,null,324,"2024-04-16",1,324,2]
[null,null,null,null,null,null,null,null,null,null,null,null,null,null,null,null,null,null,null,null,null,null,null,null,null,null,325,"2024-04-17",1,325,3]
[null,null,null,null,null,null,null,null,null,null,null,null,null,null,null,null,null,null,null,null,null,null,null,null,null,null,326,"2024-04-18",1,326,4]
[null,null,null,null,null,null,null,null,null,null,null,null,null,null,null,null,null,null,null,null,null,null,null,null,null,null,327,"2024-04-19",1,327,5]
[null,null,null,null,null,null,null,null,null,null,null,null,null,null,null,null,null,null,null,null,null,null,null,null,null,null,327,"2024-04-20",0,327,6]
[null,null,null,null,null,null,null,null,null,null,null,null,null,null,null,null,null,null,null,null,null,null,null,null,null,null,327,"2024-04-21",0,327,7]
[null,null,null,null,null,null,null,null,null,null,null,null,null,null,null,null,null,null,null,null,null,null,null,null,null,null,328,"2024-04-22",1,328,1]
[null,null,null,null,null,null,null,null,null,null,null,null,null,null,null,null,null,null,null,null,null,null,null,null,null,null,329,"2024-04-23",1,329,2]
[null,null,null,null,null,null,null,null,null,null,null,null,null,null,null,null,null,null,null,null,null,null,null,null,null,null,330,"2024-04-24",1,330,3]
[null,null,null,null,null,null,null,null,null,null,null,null,null,null,null,null,null,null,null,null,null,null,null,null,null,null,331,"2024-04-25",1,331,4]
[null,null,null,null,null,null,null,null,null,null,null,null,null,null,null,null,null,null,null,null,null,null,null,null,null,null,332,"2024-04-26",1,332,5]
[null,null,null,null,null,null,null,null,null,null,null,null,null,null,null,null,null,null,null,null,null,null,null,null,null,null,332,"2024-04-27",0,332,6]
[null,null,null,null,null,null,null,null,null,null,null,null,null,null,null,null,null,null,null,null,null,null,null,null,null,null,332,"2024-04-28",0,332,7]
[null,null,null,null,null,null,null,null,null,null,null,null,null,null,null,null,null,null,null,null,null,null,null,null,null,null,333,"2024-04-29",1,333,1]
[null,null,null,null,null,null,null,null,null,null,null,null,null,null,null,null,null,null,null,null,null,null,null,null,null,null,334,"2024-04-30",1,334,2]
[null,null,null,null,null,null,null,null,null,null,null,null,null,null,null,null,null,null,null,null,null,null,null,null,null,null,334,"2024-05-01",0,334,3]
[null,null,null,null,null,null,null,null,null,null,null,null,null,null,null,null,null,null,null,null,null,null,null,null,null,null,335,"2024-05-02",1,335,4]
[null,null,null,null,null,null,null,null,null,null,null,null,null,null,null,null,null,null,null,null,null,null,null,null,null,null,336,"2024-05-03",1,336,5]
[null,null,null,null,null,null,null,null,null,null,null,null,null,null,null,null,null,null,null,null,null,null,null,null,null,null,336,"2024-05-04",0,336,6]
[null,null,null,null,null,null,null,null,null,null,null,null,null,null,null,null,null,null,null,null,null,null,null,null,null,null,336,"2024-05-05",0,336,7]
[null,null,null,null,null,null,null,null,null,null,null,null,null,null,null,null,null,null,null,null,null,null,null,null,null,null,337,"2024-05-06",1,337,1]
[null,null,null,null,null,null,null,null,null,null,null,null,null,null,null,null,null,null,null,null,null,null,null,null,null,null,338,"2024-05-07",1,338,2]
[null,null,null,null,null,null,null,null,null,null,null,null,null,null,null,null,null,null,null,null,null,null,null,null,null,null,338,"2024-05-08",0,338,3]
[null,null,null,null,null,null,null,null,null,null,null,null,null,null,null,null,null,null,null,null,null,null,null,null,null,null,339,"2024-05-09",1,339,4]
[null,null,null,null,null,null,null,null,null,null,null,null,null,null,null,null,null,null,null,null,null,null,null,null,null,null,340,"2024-05-10",1,340,5]
[null,null,null,null,null,null,null,null,null,null,null,null,null,null,null,null,null,null,null,null,null,null,null,null,null,null,340,"2024-05-11",0,340,6]
[null,null,null,null,null,null,null,null,null,null,null,null,null,null,null,null,null,null,null,null,null,null,null,null,null,null,340,"2024-05-12",0,340,7]
[null,null,null,null,null,null,null,null,null,null,null,null,null,null,null,null,null,null,null,null,null,null,null,null,null,null,341,"2024-05-13",1,341,1]
[null,null,null,null,null,null,null,null,null,null,null,null,null,null,null,null,null,null,null,null,null,null,null,null,null,null,342,"2024-05-14",1,342,2]
[null,null,null,null,null,null,null,null,null,null,null,null,null,null,null,null,null,null,null,null,null,null,null,null,null,null,343,"2024-05-15",1,343,3]
[null,null,null,null,null,null,null,null,null,null,null,null,null,null,null,null,null,null,null,null,null,null,null,null,null,null,344,"2024-05-16",1,344,4]
[null,null,null,null,null,null,null,null,null,null,null,null,null,null,null,null,null,null,null,null,null,null,null,null,null,null,345,"2024-05-17",1,345,5]
[null,null,null,null,null,null,null,null,null,null,null,null,null,null,null,null,null,null,null,null,null,null,null,null,null,null,345,"2024-05-18",0,345,6]
[null,null,null,null,null,null,null,null,null,null,null,null,null,null,null,null,null,null,null,null,null,null,null,null,null,null,345,"2024-05-19",0,345,7]
[null,null,null,null,null,null,null,null,null,null,null,null,null,null,null,null,null,null,null,null,null,null,null,null,null,null,346,"2024-05-20",1,346,1]
[null,null,null,null,null,null,null,null,null,null,null,null,null,null,null,null,null,null,null,null,null,null,null,null,null,null,347,"2024-05-21",1,347,2]
[null,null,null,null,null,null,null,null,null,null,null,null,null,null,null,null,null,null,null,null,null,null,null,null,null,null,348,"2024-05-22",1,348,3]
[null,null,null,null,null,null,null,null,null,null,null,null,null,null,null,null,null,null,null,null,null,null,null,null,null,null,349,"2024-05-23",1,349,4]
[null,null,null,null,null,null,null,null,null,null,null,null,null,null,null,null,null,null,null,null,null,null,null,null,null,null,350,"2024-05-24",1,350,5]
[null,null,null,null,null,null,null,null,null,null,null,null,null,null,null,null,null,null,null,null,null,null,null,null,null,null,350,"2024-05-25",0,350,6]
[null,null,null,null,null,null,null,null,null,null,null,null,null,null,null,null,null,null,null,null,null,null,null,null,null,null,350,"2024-05-26",0,350,7]
[null,null,null,null,null,null,null,null,null,null,null,null,null,null,null,null,null,null,null,null,null,null,null,null,null,null,351,"2024-05-27",1,351,1]
[null,null,null,null,null,null,null,null,null,null,null,null,null,null,null,null,null,null,null,null,null,null,null,null,null,null,{"$f":"AA515+AC516","v":352},"2024-05-28",1,352,{"$f":"WEEKDAY(AB516,2)","v":2}]
[null,null,null,null,null,null,null,null,null,null,null,null,null,null,null,null,null,null,null,null,null,null,null,null,null,null,353,"2024-05-29",1,{"$f":"AA516+AC517","v":353},3]
[null,null,null,null,null,null,null,null,null,null,null,null,null,null,null,null,null,null,null,null,null,null,null,null,null,null,354,"2024-05-30",1,354,4]
[null,null,null,null,null,null,null,null,null,null,null,null,null,null,null,null,null,null,null,null,null,null,null,null,null,null,355,"2024-05-31",1,355,5]
[null,null,null,null,null,null,null,null,null,null,null,null,null,null,null,null,null,null,null,null,null,null,null,null,null,null,355,"2024-06-01",0,355,6]
[null,null,null,null,null,null,null,null,null,null,null,null,null,null,null,null,null,null,null,null,null,null,null,null,null,null,355,"2024-06-02",0,355,7]
[null,null,null,null,null,null,null,null,null,null,null,null,null,null,null,null,null,null,null,null,null,null,null,null,null,null,356,"2024-06-03",1,356,1]
[null,null,null,null,null,null,null,null,null,null,null,null,null,null,null,null,null,null,null,null,null,null,null,null,null,null,357,"2024-06-04",1,357,2]
[null,null,null,null,null,null,null,null,null,null,null,null,null,null,null,null,null,null,null,null,null,null,null,null,null,null,358,"2024-06-05",1,358,3]
[null,null,null,null,null,null,null,null,null,null,null,null,null,null,null,null,null,null,null,null,null,null,null,null,null,null,359,"2024-06-06",1,359,4]
[null,null,null,null,null,null,null,null,null,null,null,null,null,null,null,null,null,null,null,null,null,null,null,null,null,null,360,"2024-06-07",1,360,5]
[null,null,null,null,null,null,null,null,null,null,null,null,null,null,null,null,null,null,null,null,null,null,null,null,null,null,360,"2024-06-08",0,360,6]
[null,null,null,null,null,null,null,null,null,null,null,null,null,null,null,null,null,null,null,null,null,null,null,null,null,null,360,"2024-06-09",0,360,7]
[null,null,null,null,null,null,null,null,null,null,null,null,null,null,null,null,null,null,null,null,null,null,null,null,null,null,361,"2024-06-10",1,361,1]
[null,null,null,null,null,null,null,null,null,null,null,null,null,null,null,null,null,null,null,null,null,null,null,null,null,null,362,"2024-06-11",1,362,2]
[null,null,null,null,null,null,null,null,null,null,null,null,null,null,null,null,null,null,null,null,null,null,null,null,null,null,363,"2024-06-12",1,363,3]
[null,null,null,null,null,null,null,null,null,null,null,null,null,null,null,null,null,null,null,null,null,null,null,null,null,null,364,"2024-06-13",1,364,4]
[null,null,null,null,null,null,null,null,null,null,null,null,null,null,null,null,null,null,null,null,null,null,null,null,null,null,365,"2024-06-14",1,365,5]
[null,null,null,null,null,null,null,null,null,null,null,null,null,null,null,null,null,null,null,null,null,null,null,null,null,null,365,"2024-06-15",0,365,6]
[null,null,null,null,null,null,null,null,null,null,null,null,null,null,null,null,null,null,null,null,null,null,null,null,null,null,365,"2024-06-16",0,365,7]
[null,null,null,null,null,null,null,null,null,null,null,null,null,null,null,null,null,null,null,null,null,null,null,null,null,null,366,"2024-06-17",1,366,1]
[null,null,null,null,null,null,null,null,null,null,null,null,null,null,null,null,null,null,null,null,null,null,null,null,null,null,367,"2024-06-18",1,367,2]
[null,null,null,null,null,null,null,null,null,null,null,null,null,null,null,null,null,null,null,null,null,null,null,null,null,null,368,"2024-06-19",1,368,3]
[null,null,null,null,null,null,null,null,null,null,null,null,null,null,null,null,null,null,null,null,null,null,null,null,null,null,369,"2024-06-20",1,369,4]
[null,null,null,null,null,null,null,null,null,null,null,null,null,null,null,null,null,null,null,null,null,null,null,null,null,null,370,"2024-06-21",1,370,5]
[null,null,null,null,null,null,null,null,null,null,null,null,null,null,null,null,null,null,null,null,null,null,null,null,null,null,370,"2024-06-22",0,370,6]
[null,null,null,null,null,null,null,null,null,null,null,null,null,null,null,null,null,null,null,null,null,null,null,null,null,null,370,"2024-06-23",0,370,7]
[null,null,null,null,null,null,null,null,null,null,null,null,null,null,null,null,null,null,null,null,null,null,null,null,null,null,371,"2024-06-24",1,371,1]
[null,null,null,null,null,null,null,null,null,null,null,null,null,null,null,null,null,null,null,null,null,null,null,null,null,null,372,"2024-06-25",1,372,2]
[null,null,null,null,null,null,null,null,null,null,null,null,null,null,null,null,null,null,null,null,null,null,null,null,null,null,373,"2024-06-26",1,373,3]
[null,null,null,null,null,null,null,null,null,null,null,null,null,null,null,null,null,null,null,null,null,null,null,null,null,null,374,"2024-06-27",1,374,4]
[null,null,null,null,null,null,null,null,null,null,null,null,null,null,null,null,null,null,null,null,null,null,null,null,null,null,375,"2024-06-28",1,375,5]
[null,null,null,null,null,null,null,null,null,null,null,null,null,null,null,null,null,null,null,null,null,null,null,null,null,null,375,"2024-06-29",0,375,6]
[null,null,null,null,null,null,null,null,null,null,null,null,null,null,null,null,null,null,null,null,null,null,null,null,null,null,375,"2024-06-30",0,375,7]
[null,null,null,null,null,null,null,null,null,null,null,null,null,null,null,null,null,null,null,null,null,null,null,null,null,null,376,"2024-07-01",1,376,1]
[null,null,null,null,null,null,null,null,null,null,null,null,null,null,null,null,null,null,null,null,null,null,null,null,null,null,377,"2024-07-02",1,377,2]
[null,null,null,null,null,null,null,null,null,null,null,null,null,null,null,null,null,null,null,null,null,null,null,null,null,null,378,"2024-07-03",1,378,3]
[null,null,null,null,null,null,null,null,null,null,null,null,null,null,null,null,null,null,null,null,null,null,null,null,null,null,379,"2024-07-04",1,379,4]
[null,null,null,null,null,null,null,null,null,null,null,null,null,null,null,null,null,null,null,null,null,null,null,null,null,null,379,"2024-07-05",0,379,5]
[null,null,null,null,null,null,null,null,null,null,null,null,null,null,null,null,null,null,null,null,null,null,null,null,null,null,379,"2024-07-06",0,379,6]
[null,null,null,null,null,null,null,null,null,null,null,null,null,null,null,null,null,null,null,null,null,null,null,null,null,null,379,"2024-07-07",0,379,7]
[null,null,null,null,null,null,null,null,null,null,null,null,null,null,null,null,null,null,null,null,null,null,null,null,null,null,380,"2024-07-08",1,380,1]
[null,null,null,null,null,null,null,null,null,null,null,null,null,null,null,null,null,null,null,null,null,null,null,null,null,null,381,"2024-07-09",1,381,2]
[null,null,null,null,null,null,null,null,null,null,null,null,null,null,null,null,null,null,null,null,null,null,null,null,null,null,382,"2024-07-10",1,382,3]
[null,null,null,null,null,null,null,null,null,null,null,null,null,null,null,null,null,null,null,null,null,null,null,null,null,null,383,"2024-07-11",1,383,4]
[null,null,null,null,null,null,null,null,null,null,null,null,null,null,null,null,null,null,null,null,null,null,null,null,null,null,384,"2024-07-12",1,384,5]
[null,null,null,null,null,null,null,null,null,null,null,null,null,null,null,null,null,null,null,null,null,null,null,null,null,null,384,"2024-07-13",0,384,6]
[null,null,null,null,null,null,null,null,null,null,null,null,null,null,null,null,null,null,null,null,null,null,null,null,null,null,384,"2024-07-14",0,384,7]
[null,null,null,null,null,null,null,null,null,null,null,null,null,null,null,null,null,null,null,null,null,null,null,null,null,null,385,"2024-07-15",1,385,1]
[null,null,null,null,null,null,null,null,null,null,null,null,null,null,null,null,null,null,null,null,null,null,null,null,null,null,386,"2024-07-16",1,386,2]
[null,null,null,null,null,null,null,null,null,null,null,null,null,null,null,null,null,null,null,null,null,null,null,null,null,null,387,"2024-07-17",1,387,3]
[null,null,null,null,null,null,null,null,null,null,null,null,null,null,null,null,null,null,null,null,null,null,null,null,null,null,388,"2024-07-18",1,388,4]
[null,null,null,null,null,null,null,null,null,null,null,null,null,null,null,null,null,null,null,null,null,null,null,null,null,null,389,"2024-07-19",1,389,5]
[null,null,null,null,null,null,null,null,null,null,null,null,null,null,null,null,null,null,null,null,null,null,null,null,null,null,389,"2024-07-20",0,389,6]